Workbook

Sheet 은평구총괄
B1: 은평구 등록장애인 현황 (2025. 5월 말 기준)
B3: 서울특별시 은평구 | J3: (단위 : 명)
B5: 자치구 | C5: 장애유형 | D5: 합계 | G5: 심한 장애 | J5: 심하지 않은 장애
D6: 계 | E6: 남 | F6: 여 | G6: 계 | H6: 남 | I6: 여 | J6: 계 | K6: 남 | L6: 여
B7: 은평구 | C7: 합 계 | D7: =E7+F7 -> 21216 | E7: =H7+K7 -> 12336 | F7: =I7+L7 -> 8880 | G7: =SUM(G8:G22) -> 8031 | H7: 5007 | I7: 3024 | J7: 13185 | K7: 7329 | L7: 5856
C8: 지체 | D8: =E8+F8 -> 8274 | E8: =H8+K8 -> 4516 | F8: =I8+L8 -> 3758 | G8: 1329 | H8: 855 | I8: 474 | J8: 6945 | K8: 3661 | L8: 3284
C9: 시각 | D9: 2273 | E9: =H9+K9 -> 1330 | F9: =I9+L9 -> 943 | G9: 431 | H9: 233 | I9: 198 | J9: 1842 | K9: 1097 | L9: 745
C10: 청각 | D10: 3348 | E10: 1846 | F10: 1502 | G10: 613 | H10: 301 | I10: 312 | J10: 2735 | K10: 1545 | L10: 1190
C11: 언어 | D11: 161 | E11: 116 | F11: 45 | G11: 88 | H11: 64 | I11: 24 | J11: 73 | K11: 52 | L11: 21
C12: 지적 | D12: 1882 | E12: 1237 | F12: 645 | G12: 1882 | H12: 1237 | I12: 645 | J12: 0 | K12: 0 | L12: 0
C13: 뇌병변 | D13: 2081 | E13: 1231 | F13: 850 | G13: 1166 | H13: 658 | I13: 508 | J13: 915 | K13: 573 | L13: 342
C14: 자폐성 | D14: 506 | E14: 420 | F14: 86 | G14: 506 | H14: 420 | I14: 86 | J14: 0 | K14: 0 | L14: 0
C15: 정신 | D15: 1118 | E15: 678 | F15: 440 | G15: 1081 | H15: 659 | I15: 422 | J15: 37 | K15: 19 | L15: 18
C16: 신장 | D16: 968 | E16: 583 | F16: 385 | G16: 752 | H16: 461 | I16: 291 | J16: 216 | K16: 122 | L16: 94
C17: 심장 | D17: 44 | E17: 26 | F17: 18 | G17: 30 | H17: 14 | I17: 16 | J17: 14 | K17: 12 | L17: 2
C18: 호흡기 | D18: 115 | E18: 81 | F18: 34 | G18: 108 | H18: 79 | I18: 29 | J18: 7 | K18: 2 | L18: 5
C19: 간 | D19: 165 | E19: 107 | F19: 58 | G19: 6 | H19: 4 | I19: 2 | J19: 159 | K19: 103 | L19: 56
C20: 안면 | D20: 24 | E20: 14 | F20: 10 | G20: 9 | H20: 6 | I20: 3 | J20: 15 | K20: 8 | L20: 7
C21: 장루.요루 | D21: 193 | E21: 120 | F21: 73 | G21: 18 | H21: 10 | I21: 8 | J21: 175 | K21: 110 | L21: 65
C22: 뇌전증 | D22: =E22+F22 -> 64 | E22: =H22+K22 -> 31 | F22: =I22+L22 -> 33 | G22: 12 | H22: 6 | I22: 6 | J22: 52 | K22: 25 | L22: 27

Sheet 유형별
A1: 은평구 동별 장애인현황(유형별) (2025. 5월말)
A2: 동별 | B2: 합계 | E2: 지체 | H2: 시각 | K2: 청각 | N2: 언어 | Q2: 지적 | T2: 뇌병변 | W2: 자폐 | Z2: 정신 | AC2: 신장 | AF2: 심장 | AI2: 호흡기 | AL2: 간 | AO2: 안면 | AR2: 장루.요루 | AU2: 뇌전증
B3: 합계 | C3: 남성 | D3: 여성 | E3: 소계 | F3: 남성 | G3: 여성 | H3: 소계 | I3: 남성 | J3: 여성 | K3: 소계 | L3: 남성 | M3: 여성 | N3: 소계 | O3: 남성 | P3: 여성 | Q3: 소계 | R3: 남성 | S3: 여성 | T3: 소계 | U3: 남성 | V3: 여성 | W3: 소계 | X3: 남성 | Y3: 여성 | Z3: 소계 | AA3: 남성 | AB3: 여성 | AC3: 소계 | AD3: 남성 | AE3: 여성 | AF3: 소계 | AG3: 남성 | AH3: 여성 | AI3: 소계 | AJ3: 남성 | AK3: 여성 | AL3: 소계 | AM3: 남성 | AN3: 여성 | AO3: 소계 | AP3: 남성 | AQ3: 여성 | AR3: 소계 | AS3: 남성 | AT3: 여성 | AU3: 소계 | AV3: 남성 | AW3: 여성
A4: 합 계 | B4: =SUM(B5:B20) -> 21216 | C4: =SUM(C5:C20) -> 12336 | D4: =SUM(D5:D20) -> 8880 | E4: =SUM(E5:E20) -> 8274 | F4: =SUM(F5:F20) -> 4516 | G4: 3758 | H4: 2273 | I4: 1330 | J4: 943 | K4: 3348 | L4: 1846 | M4: 1502 | N4: 161 | O4: 116 | P4: 45 | Q4: 1882 | R4: 1237 | S4: 645 | T4: 2081 | U4: 1231 | V4: 850 | W4: 506 | X4: 420 | Y4: 86 | Z4: 1118 | AA4: 678 | AB4: 440 | AC4: 968 | AD4: 583 | AE4: 385 | AF4: 44 | AG4: 26 | AH4: 18 | AI4: 115 | AJ4: 81 | AK4: 34 | AL4: 165 | AM4: 107 | AN4: 58 | AO4: 24 | AP4: 14 | AQ4: 10 | AR4: 193 | AS4: 120 | AT4: 73 | AU4: 64 | AV4: 31 | AW4: 33
A5: 녹번동 | B5: =C5+D5 -> 1609 | C5: =SUM(F5,I5,L5,O5,R5,U5,X5,AA5,AD5,AG5,AJ5,AM5,AP5,AS5,AV5) -> 918 | D5: =SUM(G5,J5,M5,P5,S5,V5,Y5,AB5,AE5,AH5,AK5,AN5,AQ5,AT5,AW5) -> 691 | E5: 665 | F5: 360 | G5: 305 | H5: 175 | I5: 114 | J5: 61 | K5: 293 | L5: 155 | M5: 138 | N5: 12 | O5: 8 | P5: 4 | Q5: 110 | R5: 70 | S5: 40 | T5: 159 | U5: 84 | V5: 75 | W5: 22 | X5: 16 | Y5: 6 | Z5: 64 | AA5: 35 | AB5: 29 | AC5: 72 | AD5: 48 | AE5: 24 | AF5: 2 | AG5: 1 | AH5: 1 | AI5: 6 | AJ5: 4 | AK5: 2 | AL5: 9 | AM5: 8 | AN5: 1 | AO5: 3 | AP5: 3 | AQ5: 0 | AR5: 16 | AS5: 11 | AT5: 5 | AU5: 1 | AV5: 1 | AW5: 0
A6: 불광1동 | B6: =C6+D6 -> 1625 | C6: 907 | D6: =SUM(G6,J6,M6,P6,S6,V6,Y6,AB6,AE6,AH6,AK6,AN6,AQ6,AT6,AW6) -> 718 | E6: 656 | F6: 358 | G6: 298 | H6: 183 | I6: 107 | J6: 76 | K6: 257 | L6: 147 | M6: 110 | N6: 14 | O6: 10 | P6: 4 | Q6: 111 | R6: 64 | S6: 47 | T6: 156 | U6: 84 | V6: 72 | W6: 31 | X6: 26 | Y6: 5 | Z6: 72 | AA6: 36 | AB6: 36 | AC6: 95 | AD6: 47 | AE6: 48 | AF6: 4 | AG6: 1 | AH6: 3 | AI6: 8 | AJ6: 7 | AK6: 1 | AL6: 18 | AM6: 10 | AN6: 8 | AO6: 1 | AP6: 1 | AQ6: 0 | AR6: 14 | AS6: 7 | AT6: 7 | AU6: 5 | AV6: 2 | AW6: 3
A7: 불광2동 | B7: 1432 | C7: 842 | D7: 590 | E7: 548 | F7: 310 | G7: 238 | H7: 169 | I7: 112 | J7: 57 | K7: 254 | L7: 145 | M7: 109 | N7: 15 | O7: 14 | P7: 1 | Q7: 117 | R7: 73 | S7: 44 | T7: 123 | U7: 73 | V7: 50 | W7: 30 | X7: 30 | Y7: 0 | Z7: 68 | AA7: 27 | AB7: 41 | AC7: 66 | AD7: 38 | AE7: 28 | AF7: 3 | AG7: 3 | AH7: 0 | AI7: 2 | AJ7: 2 | AK7: 0 | AL7: 7 | AM7: 4 | AN7: 3 | AO7: 3 | AP7: 1 | AQ7: 2 | AR7: 17 | AS7: 6 | AT7: 11 | AU7: 10 | AV7: 4 | AW7: 6
A8: 갈현1동 | B8: 692 | C8: 390 | D8: 302 | E8: 274 | F8: 142 | G8: 132 | H8: 84 | I8: 49 | J8: 35 | K8: 113 | L8: 62 | M8: 51 | N8: 3 | O8: 2 | P8: 1 | Q8: 59 | R8: 38 | S8: 21 | T8: 58 | U8: 40 | V8: 18 | W8: 18 | X8: 16 | Y8: 2 | Z8: 34 | AA8: 16 | AB8: 18 | AC8: 29 | AD8: 14 | AE8: 15 | AF8: 2 | AG8: 1 | AH8: 1 | AI8: 2 | AJ8: 2 | AK8: 0 | AL8: 7 | AM8: 4 | AN8: 3 | AO8: 0 | AP8: 0 | AQ8: 0 | AR8: 8 | AS8: 3 | AT8: 5 | AU8: 1 | AV8: 1 | AW8: 0
A9: 갈현2동 | B9: 1255 | C9: 737 | D9: 518 | E9: 507 | F9: 282 | G9: 225 | H9: 129 | I9: 81 | J9: 48 | K9: 196 | L9: 120 | M9: 76 | N9: 18 | O9: 14 | P9: 4 | Q9: 111 | R9: 69 | S9: 42 | T9: 106 | U9: 63 | V9: 43 | W9: 20 | X9: 14 | Y9: 6 | Z9: 72 | AA9: 32 | AB9: 40 | AC9: 60 | AD9: 39 | AE9: 21 | AF9: 5 | AG9: 2 | AH9: 3 | AI9: 7 | AJ9: 6 | AK9: 1 | AL9: 13 | AM9: 8 | AN9: 5 | AO9: 0 | AP9: 0 | AQ9: 0 | AR9: 8 | AS9: 6 | AT9: 2 | AU9: 3 | AV9: 1 | AW9: 2
A10: 구산동 | B10: 2108 | C10: 1454 | D10: 654 | E10: 583 | F10: 329 | G10: 254 | H10: 165 | I10: 100 | J10: 65 | K10: 240 | L10: 138 | M10: 102 | N10: 12 | O10: 9 | P10: 3 | Q10: 402 | R10: 312 | S10: 90 | T10: 221 | U10: 159 | V10: 62 | W10: 48 | X10: 40 | Y10: 8 | Z10: 306 | AA10: 270 | AB10: 36 | AC10: 63 | AD10: 45 | AE10: 18 | AF10: 0 | AG10: 0 | AH10: 0 | AI10: 24 | AJ10: 17 | AK10: 7 | AL10: 17 | AM10: 15 | AN10: 2 | AO10: 2 | AP10: 1 | AQ10: 1 | AR10: 20 | AS10: 16 | AT10: 4 | AU10: 5 | AV10: 3 | AW10: 2
A11: 대조동 | B11: 1225 | C11: 707 | D11: 518 | E11: 493 | F11: 275 | G11: 218 | H11: 146 | I11: 77 | J11: 69 | K11: 204 | L11: 120 | M11: 84 | N11: 7 | O11: 5 | P11: 2 | Q11: 69 | R11: 46 | S11: 23 | T11: 117 | U11: 66 | V11: 51 | W11: 28 | X11: 22 | Y11: 6 | Z11: 69 | AA11: 34 | AB11: 35 | AC11: 64 | AD11: 42 | AE11: 22 | AF11: 2 | AG11: 1 | AH11: 1 | AI11: 6 | AJ11: 5 | AK11: 1 | AL11: 4 | AM11: 3 | AN11: 1 | AO11: 1 | AP11: 1 | AQ11: 0 | AR11: 11 | AS11: 9 | AT11: 2 | AU11: 4 | AV11: 1 | AW11: 3
A12: 응암1동 | B12: 1312 | C12: 709 | D12: 603 | E12: 565 | F12: 289 | G12: 276 | H12: 151 | I12: 84 | J12: 67 | K12: 218 | L12: 103 | M12: 115 | N12: 6 | O12: 4 | P12: 2 | Q12: 70 | R12: 41 | S12: 29 | T12: 131 | U12: 80 | V12: 51 | W12: 33 | X12: 28 | Y12: 5 | Z12: 50 | AA12: 29 | AB12: 21 | AC12: 56 | AD12: 29 | AE12: 27 | AF12: 5 | AG12: 3 | AH12: 2 | AI12: 5 | AJ12: 5 | AK12: 0 | AL12: 8 | AM12: 4 | AN12: 4 | AO12: 2 | AP12: 2 | AQ12: 0 | AR12: 9 | AS12: 7 | AT12: 2 | AU12: 3 | AV12: 1 | AW12: 2
A13: 응암2동 | B13: 962 | C13: 538 | D13: 424 | E13: 365 | F13: 198 | G13: 167 | H13: 98 | I13: 52 | J13: 46 | K13: 156 | L13: 77 | M13: 79 | N13: 9 | O13: 7 | P13: 2 | Q13: 71 | R13: 45 | S13: 26 | T13: 96 | U13: 52 | V13: 44 | W13: 36 | X13: 31 | Y13: 5 | Z13: 47 | AA13: 31 | AB13: 16 | AC13: 50 | AD13: 25 | AE13: 25 | AF13: 2 | AG13: 2 | AH13: 0 | AI13: 10 | AJ13: 6 | AK13: 4 | AL13: 8 | AM13: 4 | AN13: 4 | AO13: 2 | AP13: 0 | AQ13: 2 | AR13: 7 | AS13: 4 | AT13: 3 | AU13: 5 | AV13: 4 | AW13: 1
A14: 응암3동 | B14: 1302 | C14: 729 | D14: 573 | E14: 507 | F14: 274 | G14: 233 | H14: 150 | I14: 85 | J14: 65 | K14: 241 | L14: 119 | M14: 122 | N14: 7 | O14: 5 | P14: 2 | Q14: 87 | R14: 58 | S14: 29 | T14: 137 | U14: 84 | V14: 53 | W14: 20 | X14: 15 | Y14: 5 | Z14: 51 | AA14: 27 | AB14: 24 | AC14: 58 | AD14: 39 | AE14: 19 | AF14: 4 | AG14: 2 | AH14: 2 | AI14: 8 | AJ14: 6 | AK14: 2 | AL14: 12 | AM14: 3 | AN14: 9 | AO14: 0 | AP14: 0 | AQ14: 0 | AR14: 14 | AS14: 10 | AT14: 4 | AU14: 6 | AV14: 2 | AW14: 4
A15: 역촌동 | B15: 2159 | C15: 1205 | D15: 954 | E15: 887 | F15: 465 | G15: 422 | H15: 200 | I15: 113 | J15: 87 | K15: 345 | L15: 199 | M15: 146 | N15: 17 | O15: 7 | P15: 10 | Q15: 206 | R15: 126 | S15: 80 | T15: 225 | U15: 136 | V15: 89 | W15: 41 | X15: 33 | Y15: 8 | Z15: 91 | AA15: 38 | AB15: 53 | AC15: 103 | AD15: 62 | AE15: 41 | AF15: 1 | AG15: 1 | AH15: 0 | AI15: 14 | AJ15: 7 | AK15: 7 | AL15: 11 | AM15: 7 | AN15: 4 | AO15: 2 | AP15: 1 | AQ15: 1 | AR15: 13 | AS15: 8 | AT15: 5 | AU15: 3 | AV15: 2 | AW15: 1
A16: 신사1동 | B16: 1255 | C16: 745 | D16: 510 | E16: 483 | F16: 284 | G16: 199 | H16: 154 | I16: 86 | J16: 68 | K16: 174 | L16: 107 | M16: 67 | N16: 16 | O16: 9 | P16: 7 | Q16: 149 | R16: 88 | S16: 61 | T16: 114 | U16: 63 | V16: 51 | W16: 31 | X16: 24 | Y16: 7 | Z16: 50 | AA16: 33 | AB16: 17 | AC16: 55 | AD16: 34 | AE16: 21 | AF16: 2 | AG16: 2 | AH16: 0 | AI16: 4 | AJ16: 2 | AK16: 2 | AL16: 5 | AM16: 4 | AN16: 1 | AO16: 2 | AP16: 1 | AQ16: 1 | AR16: 10 | AS16: 5 | AT16: 5 | AU16: 6 | AV16: 3 | AW16: 3
A17: 신사2동 | B17: 884 | C17: 508 | D17: 376 | E17: 379 | F17: 206 | G17: 173 | H17: 86 | I17: 59 | J17: 27 | K17: 135 | L17: 69 | M17: 66 | N17: 6 | O17: 6 | P17: 0 | Q17: 77 | R17: 44 | S17: 33 | T17: 75 | U17: 46 | V17: 29 | W17: 21 | X17: 17 | Y17: 4 | Z17: 26 | AA17: 15 | AB17: 11 | AC17: 52 | AD17: 30 | AE17: 22 | AF17: 3 | AG17: 1 | AH17: 2 | AI17: 7 | AJ17: 6 | AK17: 1 | AL17: 4 | AM17: 2 | AN17: 2 | AO17: 1 | AP17: 1 | AQ17: 0 | AR17: 9 | AS17: 4 | AT17: 5 | AU17: 3 | AV17: 2 | AW17: 1
A18: 증산동 | B18: 669 | C18: 394 | D18: 275 | E18: 287 | F18: 164 | G18: 123 | H18: 54 | I18: 29 | J18: 25 | K18: 116 | L18: 71 | M18: 45 | N18: 6 | O18: 3 | P18: 3 | Q18: 47 | R18: 32 | S18: 15 | T18: 58 | U18: 29 | V18: 29 | W18: 17 | X18: 17 | Y18: 0 | Z18: 32 | AA18: 15 | AB18: 17 | AC18: 29 | AD18: 18 | AE18: 11 | AF18: 1 | AG18: 1 | AH18: 0 | AI18: 3 | AJ18: 2 | AK18: 1 | AL18: 6 | AM18: 5 | AN18: 1 | AO18: 1 | AP18: 0 | AQ18: 1 | AR18: 8 | AS18: 7 | AT18: 1 | AU18: 4 | AV18: 1 | AW18: 3
A19: 수색동 | B19: 822 | C19: 444 | D19: 378 | E19: 319 | F19: 165 | G19: 154 | H19: 103 | I19: 56 | J19: 47 | K19: 128 | L19: 67 | M19: 61 | N19: 4 | O19: 4 | P19: 0 | Q19: 61 | R19: 42 | S19: 19 | T19: 98 | U19: 48 | V19: 50 | W19: 20 | X19: 17 | Y19: 3 | Z19: 30 | AA19: 13 | AB19: 17 | AC19: 33 | AD19: 18 | AE19: 15 | AF19: 1 | AG19: 0 | AH19: 1 | AI19: 3 | AJ19: 0 | AK19: 3 | AL19: 11 | AM19: 8 | AN19: 3 | AO19: 2 | AP19: 2 | AQ19: 0 | AR19: 9 | AS19: 4 | AT19: 5 | AU19: 0 | AV19: 0 | AW19: 0
A20: 진관동 | B20: 1905 | C20: 1109 | D20: 796 | E20: 756 | F20: 415 | G20: 341 | H20: 226 | I20: 126 | J20: 100 | K20: 278 | L20: 147 | M20: 131 | N20: 9 | O20: 9 | P20: 0 | Q20: 135 | R20: 89 | S20: 46 | T20: 207 | U20: 124 | V20: 83 | W20: 90 | X20: 74 | Y20: 16 | Z20: 56 | AA20: 27 | AB20: 29 | AC20: 83 | AD20: 55 | AE20: 28 | AF20: 7 | AG20: 5 | AH20: 2 | AI20: 6 | AJ20: 4 | AK20: 2 | AL20: 25 | AM20: 18 | AN20: 7 | AO20: 2 | AP20: 0 | AQ20: 2 | AR20: 20 | AS20: 13 | AT20: 7 | AU20: 5 | AV20: 3 | AW20: 2

Sheet 정도별
B2: 은평구 동별 장애인현황(정도별)
B3: *2025. 5월말 기준 | K3: (단위 : 명)
B4: 자치구 | C4: 동 | D4: 합계 | G4: 심한 장애 | J4: 심하지 않은 장애
D5: 계 | E5: 남자 | F5: 여자 | G5: 계 | H5: 남자 | I5: 여자 | J5: 계 | K5: 남자 | L5: 여자
B6: 은평구 | C6: 합 계 | D6: =SUM(D7:D22) -> 21216 | E6: =SUM(E7:E22) -> 12336 | F6: =SUM(F7:F22) -> 8880
C7: 녹번동 | D7: =E7+F7 -> 1609 | E7: =SUM(H7,K7,N7,Q7,T7,W7,Z7,AC7,AF7,AI7,AL7,AO7,AR7,AU7,AX7) -> 918 | F7: =SUM(I7,L7,O7,R7,U7,X7,AA7,AD7,AG7,AJ7,AM7,AP7,AS7,AV7,AY7) -> 691 | G7: 543 | H7: 316 | I7: 227 | J7: 1066 | K7: 602 | L7: 464
C8: 불광1동 | D8: =E8+F8 -> 1625 | E8: 907 | F8: 718 | G8: 569 | H8: 317 | I8: 252 | J8: 1056 | K8: 590 | L8: 466
C9: 불광2동 | D9: 1432 | E9: 842 | F9: 590 | G9: 488 | H9: 294 | I9: 194 | J9: 944 | K9: 548 | L9: 396
C10: 갈현1동 | D10: 692 | E10: 390 | F10: 302 | G10: 247 | H10: 144 | I10: 103 | J10: 445 | K10: 246 | L10: 199
C11: 갈현2동 | D11: 1255 | E11: 737 | F11: 518 | G11: 475 | H11: 280 | I11: 195 | J11: 780 | K11: 457 | L11: 323
C12: 구산동 | D12: 2108 | E12: 1454 | F12: 654 | G12: 1137 | H12: 897 | I12: 240 | J12: 971 | K12: 557 | L12: 414
C13: 대조동 | D13: 1225 | E13: 707 | F13: 518 | G13: 443 | H13: 270 | I13: 173 | J13: 782 | K13: 437 | L13: 345
C14: 응암1동 | D14: 1312 | E14: 709 | F14: 603 | G14: 458 | H14: 258 | I14: 200 | J14: 854 | K14: 451 | L14: 403
C15: 응암2동 | D15: 962 | E15: 538 | F15: 424 | G15: 365 | H15: 227 | I15: 138 | J15: 597 | K15: 311 | L15: 286
C16: 응암3동 | D16: 1302 | E16: 729 | F16: 573 | G16: 397 | H16: 241 | I16: 156 | J16: 905 | K16: 488 | L16: 417
C17: 역촌동 | D17: 2159 | E17: 1205 | F17: 954 | G17: 800 | H17: 460 | I17: 340 | J17: 1359 | K17: 745 | L17: 614
C18: 신사1동 | D18: 1255 | E18: 745 | F18: 510 | G18: 496 | H18: 308 | I18: 188 | J18: 759 | K18: 437 | L18: 322
C19: 신사2동 | D19: 884 | E19: 508 | F19: 376 | G19: 307 | H19: 190 | I19: 117 | J19: 577 | K19: 318 | L19: 259
C20: 증산동 | D20: 669 | E20: 394 | F20: 275 | G20: 237 | H20: 148 | I20: 89 | J20: 432 | K20: 246 | L20: 186
C21: 수색동 | D21: 822 | E21: 444 | F21: 378 | G21: 315 | H21: 183 | I21: 132 | J21: 507 | K21: 261 | L21: 246
C22: 진관동 | D22: 1905 | E22: 1109 | F22: 796 | G22: 754 | H22: 474 | I22: 280 | J22: 1151 | K22: 635 | L22: 516

Sheet 연령별
A1: 은평구 장애인 연령구간별(5세 간격), 장애정도별 등록 현황
A2: =정도별!B3 -> *2025. 5월말 기준
J3: (단위: 명)
A4: 구분 | B4: 나이 | C4: 합계 | F4: 심한 장애 | I4: 심하지 않은 장애
C5: 합계 | D5: 남성 | E5: 여성 | F5: 소계 | G5: 남성 | H5: 여성 | I5: 소계 | J5: 남성 | K5: 여성
A6: 합계 | B6: 합계 | C6: =SUM(C7:C28) -> 21216 | D6: 12336 | E6: 8880 | F6: 8031 | G6: 5007 | H6: 3024 | I6: 13185 | J6: 7329 | K6: 5856
B7: 0~4 | C7: =D7+E7 -> 35 | D7: =G7+J7 -> 18 | E7: =H7+K7 -> 17 | F7: 28 | G7: 17 | H7: 11 | I7: 7 | J7: 1 | K7: 6
B8: 5~9 | C8: =D8+E8 -> 266 | D8: =G8+J8 -> 184 | E8: =H8+K8 -> 82 | F8: 245 | G8: 174 | H8: 71 | I8: 21 | J8: 10 | K8: 11
B9: 10~14 | C9: 312 | D9: 204 | E9: 108 | F9: 288 | G9: 187 | H9: 101 | I9: 24 | J9: 17 | K9: 7
B10: 15~19 | C10: 275 | D10: 188 | E10: 87 | F10: 236 | G10: 165 | H10: 71 | I10: 39 | J10: 23 | K10: 16
B11: 20~24 | C11: 365 | D11: 233 | E11: 132 | F11: 305 | G11: 201 | H11: 104 | I11: 60 | J11: 32 | K11: 28
B12: 25~29 | C12: 491 | D12: 302 | E12: 189 | F12: 375 | G12: 243 | H12: 132 | I12: 116 | J12: 59 | K12: 57
B13: 30~34 | C13: 539 | D13: 348 | E13: 191 | F13: 409 | G13: 271 | H13: 138 | I13: 130 | J13: 77 | K13: 53
B14: 35~39 | C14: 504 | D14: 322 | E14: 182 | F14: 315 | G14: 206 | H14: 109 | I14: 189 | J14: 116 | K14: 73
B15: 40~44 | C15: 650 | D15: 436 | E15: 214 | F15: 354 | G15: 214 | H15: 140 | I15: 296 | J15: 222 | K15: 74
B16: 45~49 | C16: 823 | D16: 571 | E16: 252 | F16: 422 | G16: 283 | H16: 139 | I16: 401 | J16: 288 | K16: 113
B17: 50~54 | C17: 1301 | D17: 882 | E17: 419 | F17: 626 | G17: 396 | H17: 230 | I17: 675 | J17: 486 | K17: 189
B18: 55~59 | C18: 1630 | D18: 1092 | E18: 538 | F18: 709 | G18: 456 | H18: 253 | I18: 921 | J18: 636 | K18: 285
B19: 60~64 | C19: 2045 | D19: 1381 | E19: 664 | F19: 735 | G19: 492 | H19: 243 | I19: 1310 | J19: 889 | K19: 421
B20: 65~69 | C20: 2451 | D20: 1524 | E20: 927 | F20: 804 | G20: 517 | H20: 287 | I20: 1647 | J20: 1007 | K20: 640
B21: 70~74 | C21: 2407 | D21: 1346 | E21: 1061 | F21: 674 | G21: 434 | H21: 240 | I21: 1733 | J21: 912 | K21: 821
B22: 75~79 | C22: 2572 | D22: 1346 | E22: 1226 | F22: 594 | G22: 344 | H22: 250 | I22: 1978 | J22: 1002 | K22: 976
B23: 80~84 | C23: 2358 | D23: 1093 | E23: 1265 | F23: 474 | G23: 237 | H23: 237 | I23: 1884 | J23: 856 | K23: 1028
B24: 85~89 | C24: 1544 | D24: 653 | E24: 891 | F24: 307 | G24: 126 | H24: 181 | I24: 1237 | J24: 527 | K24: 710
B25: 90~94 | C25: 532 | D25: 174 | E25: 358 | F25: 105 | G25: 36 | H25: 69 | I25: 427 | J25: 138 | K25: 289
B26: 95~99 | C26: 100 | D26: 35 | E26: 65 | F26: 22 | G26: 7 | H26: 15 | I26: 78 | J26: 28 | K26: 50
B27: 100~104 | C27: 15 | D27: 4 | E27: 11 | F27: 3 | G27: 1 | H27: 2 | I27: 12 | J27: 3 | K27: 9
B28: 105~109 | C28: =D28+E28 -> 1 | D28: =G28+J28 -> 0 | E28: =H28+K28 -> 1 | F28: 1 | G28: 0 | H28: 1 | I28: 0 | J28: 0 | K28: 0

Sheet 연령별,유형별
A1: 은평구 등록장애인 연령별, 유형별 현황
B2: =정도별!B3 -> *2025. 5월말 기준
A3: 구분 | B3: 나이 | C3: 합계 | F3: 지체 | I3: 시각 | L3: 청각 | O3: 언어 | R3: 지적 | U3: 뇌병변 | X3: 자폐 | AA3: 정신 | AD3: 신장 | AG3: 심장 | AJ3: 호흡기 | AM3: 간 | AP3: 안면 | AS3: 장루.요루 | AV3: 뇌전증
C4: 합계 | D4: 남성 | E4: 여성 | F4: 소계 | G4: 남성 | H4: 여성 | I4: 소계 | J4: 남성 | K4: 여성 | L4: 소계 | M4: 남성 | N4: 여성 | O4: 소계 | P4: 남성 | Q4: 여성 | R4: 소계 | S4: 남성 | T4: 여성 | U4: 소계 | V4: 남성 | W4: 여성 | X4: 소계 | Y4: 남성 | Z4: 여성 | AA4: 소계 | AB4: 남성 | AC4: 여성 | AD4: 소계 | AE4: 남성 | AF4: 여성 | AG4: 소계 | AH4: 남성 | AI4: 여성 | AJ4: 소계 | AK4: 남성 | AL4: 여성 | AM4: 소계 | AN4: 남성 | AO4: 여성 | AP4: 소계 | AQ4: 남성 | AR4: 여성 | AS4: 소계 | AT4: 남성 | AU4: 여성 | AV4: 소계 | AW4: 남성 | AX4: 여성
A5: 합계 | C5: 21216 | D5: 12336 | E5: 8880 | F5: 8274 | G5: 4516 | H5: 3758 | I5: 2273 | J5: 1330 | K5: 943 | L5: 3348 | M5: 1846 | N5: 1502 | O5: 161 | P5: 116 | Q5: 45 | R5: 1882 | S5: 1237 | T5: 645 | U5: 2081 | V5: 1231 | W5: 850 | X5: 506 | Y5: 420 | Z5: 86 | AA5: 1118 | AB5: 678 | AC5: 440 | AD5: 968 | AE5: 583 | AF5: 385 | AG5: 44 | AH5: 26 | AI5: 18 | AJ5: 115 | AK5: 81 | AL5: 34 | AM5: 165 | AN5: 107 | AO5: 58 | AP5: 24 | AQ5: 14 | AR5: 10 | AS5: 193 | AT5: 120 | AU5: 73 | AV5: 64 | AW5: 31 | AX5: 33
B6: 0 | C6: 1 | D6: 0 | E6: 1 | F6: 0 | G6: 0 | H6: 0 | I6: 0 | J6: 0 | K6: 0 | L6: 1 | M6: 0 | N6: 1 | O6: 0 | P6: 0 | Q6: 0 | R6: 0 | S6: 0 | T6: 0 | U6: 0 | V6: 0 | W6: 0 | X6: 0 | Y6: 0 | Z6: 0 | AA6: 0 | AB6: 0 | AC6: 0 | AD6: 0 | AE6: 0 | AF6: 0 | AG6: 0 | AH6: 0 | AI6: 0 | AJ6: 0 | AK6: 0 | AL6: 0 | AM6: 0 | AN6: 0 | AO6: 0 | AP6: 0 | AQ6: 0 | AR6: 0 | AS6: 0 | AT6: 0 | AU6: 0 | AV6: 0 | AW6: 0 | AX6: 0
A7: 합계 | B7: 1 | C7: 6 | D7: 3 | E7: 3 | F7: 0 | G7: 0 | H7: 0 | I7: 0 | J7: 0 | K7: 0 | L7: 1 | M7: 1 | N7: 0 | O7: 0 | P7: 0 | Q7: 0 | R7: 0 | S7: 0 | T7: 0 | U7: 4 | V7: 2 | W7: 2 | X7: 0 | Y7: 0 | Z7: 0 | AA7: 0 | AB7: 0 | AC7: 0 | AD7: 0 | AE7: 0 | AF7: 0 | AG7: 0 | AH7: 0 | AI7: 0 | AJ7: 0 | AK7: 0 | AL7: 0 | AM7: 1 | AN7: 0 | AO7: 1 | AP7: 0 | AQ7: 0 | AR7: 0 | AS7: 0 | AT7: 0 | AU7: 0 | AV7: 0 | AW7: 0 | AX7: 0
B8: 2 | C8: 4 | D8: 1 | E8: 3 | F8: 0 | G8: 0 | H8: 0 | I8: 0 | J8: 0 | K8: 0 | L8: 1 | M8: 0 | N8: 1 | O8: 0 | P8: 0 | Q8: 0 | R8: 0 | S8: 0 | T8: 0 | U8: 3 | V8: 1 | W8: 2 | X8: 0 | Y8: 0 | Z8: 0 | AA8: 0 | AB8: 0 | AC8: 0 | AD8: 0 | AE8: 0 | AF8: 0 | AG8: 0 | AH8: 0 | AI8: 0 | AJ8: 0 | AK8: 0 | AL8: 0 | AM8: 0 | AN8: 0 | AO8: 0 | AP8: 0 | AQ8: 0 | AR8: 0 | AS8: 0 | AT8: 0 | AU8: 0 | AV8: 0 | AW8: 0 | AX8: 0
B9: 3 | C9: 14 | D9: 7 | E9: 7 | F9: 0 | G9: 0 | H9: 0 | I9: 0 | J9: 0 | K9: 0 | L9: 2 | M9: 1 | N9: 1 | O9: 0 | P9: 0 | Q9: 0 | R9: 1 | S9: 0 | T9: 1 | U9: 8 | V9: 4 | W9: 4 | X9: 2 | Y9: 1 | Z9: 1 | AA9: 0 | AB9: 0 | AC9: 0 | AD9: 1 | AE9: 1 | AF9: 0 | AG9: 0 | AH9: 0 | AI9: 0 | AJ9: 0 | AK9: 0 | AL9: 0 | AM9: 0 | AN9: 0 | AO9: 0 | AP9: 0 | AQ9: 0 | AR9: 0 | AS9: 0 | AT9: 0 | AU9: 0 | AV9: 0 | AW9: 0 | AX9: 0
B10: 4 | C10: 10 | D10: 7 | E10: 3 | F10: 0 | G10: 0 | H10: 0 | I10: 0 | J10: 0 | K10: 0 | L10: 0 | M10: 0 | N10: 0 | O10: 0 | P10: 0 | Q10: 0 | R10: 4 | S10: 3 | T10: 1 | U10: 3 | V10: 2 | W10: 1 | X10: 3 | Y10: 2 | Z10: 1 | AA10: 0 | AB10: 0 | AC10: 0 | AD10: 0 | AE10: 0 | AF10: 0 | AG10: 0 | AH10: 0 | AI10: 0 | AJ10: 0 | AK10: 0 | AL10: 0 | AM10: 0 | AN10: 0 | AO10: 0 | AP10: 0 | AQ10: 0 | AR10: 0 | AS10: 0 | AT10: 0 | AU10: 0 | AV10: 0 | AW10: 0 | AX10: 0
B11: 5 | C11: 45 | D11: 26 | E11: 19 | F11: 1 | G11: 1 | H11: 0 | I11: 1 | J11: 1 | K11: 0 | L11: 5 | M11: 2 | N11: 3 | O11: 4 | P11: 2 | Q11: 2 | R11: 6 | S11: 3 | T11: 3 | U11: 6 | V11: 2 | W11: 4 | X11: 21 | Y11: 15 | Z11: 6 | AA11: 0 | AB11: 0 | AC11: 0 | AD11: 0 | AE11: 0 | AF11: 0 | AG11: 0 | AH11: 0 | AI11: 0 | AJ11: 0 | AK11: 0 | AL11: 0 | AM11: 0 | AN11: 0 | AO11: 0 | AP11: 0 | AQ11: 0 | AR11: 0 | AS11: 1 | AT11: 0 | AU11: 1 | AV11: 0 | AW11: 0 | AX11: 0
B12: 6 | C12: 42 | D12: 28 | E12: 14 | F12: 0 | G12: 0 | H12: 0 | I12: 1 | J12: 1 | K12: 0 | L12: 0 | M12: 0 | N12: 0 | O12: 1 | P12: 1 | Q12: 0 | R12: 4 | S12: 4 | T12: 0 | U12: 9 | V12: 2 | W12: 7 | X12: 26 | Y12: 20 | Z12: 6 | AA12: 0 | AB12: 0 | AC12: 0 | AD12: 0 | AE12: 0 | AF12: 0 | AG12: 0 | AH12: 0 | AI12: 0 | AJ12: 0 | AK12: 0 | AL12: 0 | AM12: 0 | AN12: 0 | AO12: 0 | AP12: 0 | AQ12: 0 | AR12: 0 | AS12: 0 | AT12: 0 | AU12: 0 | AV12: 1 | AW12: 0 | AX12: 1
B13: 7 | C13: 57 | D13: 36 | E13: 21 | F13: 1 | G13: 0 | H13: 1 | I13: 1 | J13: 1 | K13: 0 | L13: 0 | M13: 0 | N13: 0 | O13: 2 | P13: 1 | Q13: 1 | R13: 14 | S13: 7 | T13: 7 | U13: 11 | V13: 5 | W13: 6 | X13: 28 | Y13: 22 | Z13: 6 | AA13: 0 | AB13: 0 | AC13: 0 | AD13: 0 | AE13: 0 | AF13: 0 | AG13: 0 | AH13: 0 | AI13: 0 | AJ13: 0 | AK13: 0 | AL13: 0 | AM13: 0 | AN13: 0 | AO13: 0 | AP13: 0 | AQ13: 0 | AR13: 0 | AS13: 0 | AT13: 0 | AU13: 0 | AV13: 0 | AW13: 0 | AX13: 0
B14: 8 | C14: 61 | D14: 46 | E14: 15 | F14: 0 | G14: 0 | H14: 0 | I14: 0 | J14: 0 | K14: 0 | L14: 3 | M14: 0 | N14: 3 | O14: 3 | P14: 3 | Q14: 0 | R14: 17 | S14: 12 | T14: 5 | U14: 4 | V14: 2 | W14: 2 | X14: 33 | Y14: 28 | Z14: 5 | AA14: 0 | AB14: 0 | AC14: 0 | AD14: 0 | AE14: 0 | AF14: 0 | AG14: 0 | AH14: 0 | AI14: 0 | AJ14: 0 | AK14: 0 | AL14: 0 | AM14: 0 | AN14: 0 | AO14: 0 | AP14: 0 | AQ14: 0 | AR14: 0 | AS14: 1 | AT14: 1 | AU14: 0 | AV14: 0 | AW14: 0 | AX14: 0
B15: 9 | C15: 61 | D15: 48 | E15: 13 | F15: 0 | G15: 0 | H15: 0 | I15: 1 | J15: 0 | K15: 1 | L15: 2 | M15: 2 | N15: 0 | O15: 1 | P15: 1 | Q15: 0 | R15: 20 | S15: 17 | T15: 3 | U15: 4 | V15: 1 | W15: 3 | X15: 33 | Y15: 27 | Z15: 6 | AA15: 0 | AB15: 0 | AC15: 0 | AD15: 0 | AE15: 0 | AF15: 0 | AG15: 0 | AH15: 0 | AI15: 0 | AJ15: 0 | AK15: 0 | AL15: 0 | AM15: 0 | AN15: 0 | AO15: 0 | AP15: 0 | AQ15: 0 | AR15: 0 | AS15: 0 | AT15: 0 | AU15: 0 | AV15: 0 | AW15: 0 | AX15: 0
B16: 10 | C16: 65 | D16: 43 | E16: 22 | F16: 0 | G16: 0 | H16: 0 | I16: 1 | J16: 1 | K16: 0 | L16: 4 | M16: 0 | N16: 4 | O16: 0 | P16: 0 | Q16: 0 | R16: 26 | S16: 18 | T16: 8 | U16: 10 | V16: 6 | W16: 4 | X16: 24 | Y16: 18 | Z16: 6 | AA16: 0 | AB16: 0 | AC16: 0 | AD16: 0 | AE16: 0 | AF16: 0 | AG16: 0 | AH16: 0 | AI16: 0 | AJ16: 0 | AK16: 0 | AL16: 0 | AM16: 0 | AN16: 0 | AO16: 0 | AP16: 0 | AQ16: 0 | AR16: 0 | AS16: 0 | AT16: 0 | AU16: 0 | AV16: 0 | AW16: 0 | AX16: 0
B17: 11 | C17: 51 | D17: 32 | E17: 19 | F17: 0 | G17: 0 | H17: 0 | I17: 1 | J17: 0 | K17: 1 | L17: 3 | M17: 1 | N17: 2 | O17: 1 | P17: 1 | Q17: 0 | R17: 23 | S17: 12 | T17: 11 | U17: 7 | V17: 5 | W17: 2 | X17: 15 | Y17: 12 | Z17: 3 | AA17: 0 | AB17: 0 | AC17: 0 | AD17: 0 | AE17: 0 | AF17: 0 | AG17: 0 | AH17: 0 | AI17: 0 | AJ17: 0 | AK17: 0 | AL17: 0 | AM17: 1 | AN17: 1 | AO17: 0 | AP17: 0 | AQ17: 0 | AR17: 0 | AS17: 0 | AT17: 0 | AU17: 0 | AV17: 0 | AW17: 0 | AX17: 0
B18: 12 | C18: 63 | D18: 42 | E18: 21 | F18: 0 | G18: 0 | H18: 0 | I18: 1 | J18: 1 | K18: 0 | L18: 2 | M18: 0 | N18: 2 | O18: 1 | P18: 1 | Q18: 0 | R18: 25 | S18: 18 | T18: 7 | U18: 12 | V18: 4 | W18: 8 | X18: 21 | Y18: 17 | Z18: 4 | AA18: 0 | AB18: 0 | AC18: 0 | AD18: 0 | AE18: 0 | AF18: 0 | AG18: 1 | AH18: 1 | AI18: 0 | AJ18: 0 | AK18: 0 | AL18: 0 | AM18: 0 | AN18: 0 | AO18: 0 | AP18: 0 | AQ18: 0 | AR18: 0 | AS18: 0 | AT18: 0 | AU18: 0 | AV18: 0 | AW18: 0 | AX18: 0
B19: 13 | C19: 65 | D19: 42 | E19: 23 | F19: 2 | G19: 1 | H19: 1 | I19: 2 | J19: 2 | K19: 0 | L19: 2 | M19: 1 | N19: 1 | O19: 0 | P19: 0 | Q19: 0 | R19: 29 | S19: 14 | T19: 15 | U19: 7 | V19: 4 | W19: 3 | X19: 23 | Y19: 20 | Z19: 3 | AA19: 0 | AB19: 0 | AC19: 0 | AD19: 0 | AE19: 0 | AF19: 0 | AG19: 0 | AH19: 0 | AI19: 0 | AJ19: 0 | AK19: 0 | AL19: 0 | AM19: 0 | AN19: 0 | AO19: 0 | AP19: 0 | AQ19: 0 | AR19: 0 | AS19: 0 | AT19: 0 | AU19: 0 | AV19: 0 | AW19: 0 | AX19: 0
B20: 14 | C20: 68 | D20: 45 | E20: 23 | F20: 4 | G20: 3 | H20: 1 | I20: 2 | J20: 0 | K20: 2 | L20: 1 | M20: 0 | N20: 1 | O20: 1 | P20: 1 | Q20: 0 | R20: 33 | S20: 21 | T20: 12 | U20: 4 | V20: 2 | W20: 2 | X20: 23 | Y20: 18 | Z20: 5 | AA20: 0 | AB20: 0 | AC20: 0 | AD20: 0 | AE20: 0 | AF20: 0 | AG20: 0 | AH20: 0 | AI20: 0 | AJ20: 0 | AK20: 0 | AL20: 0 | AM20: 0 | AN20: 0 | AO20: 0 | AP20: 0 | AQ20: 0 | AR20: 0 | AS20: 0 | AT20: 0 | AU20: 0 | AV20: 0 | AW20: 0 | AX20: 0
B21: 15 | C21: 68 | D21: 48 | E21: 20 | F21: 1 | G21: 0 | H21: 1 | I21: 1 | J21: 0 | K21: 1 | L21: 0 | M21: 0 | N21: 0 | O21: 1 | P21: 1 | Q21: 0 | R21: 28 | S21: 17 | T21: 11 | U21: 9 | V21: 7 | W21: 2 | X21: 28 | Y21: 23 | Z21: 5 | AA21: 0 | AB21: 0 | AC21: 0 | AD21: 0 | AE21: 0 | AF21: 0 | AG21: 0 | AH21: 0 | AI21: 0 | AJ21: 0 | AK21: 0 | AL21: 0 | AM21: 0 | AN21: 0 | AO21: 0 | AP21: 0 | AQ21: 0 | AR21: 0 | AS21: 0 | AT21: 0 | AU21: 0 | AV21: 0 | AW21: 0 | AX21: 0
B22: 16 | C22: 57 | D22: 42 | E22: 15 | F22: 4 | G22: 4 | H22: 0 | I22: 2 | J22: 1 | K22: 1 | L22: 1 | M22: 1 | N22: 0 | O22: 0 | P22: 0 | Q22: 0 | R22: 30 | S22: 22 | T22: 8 | U22: 4 | V22: 3 | W22: 1 | X22: 13 | Y22: 9 | Z22: 4 | AA22: 0 | AB22: 0 | AC22: 0 | AD22: 0 | AE22: 0 | AF22: 0 | AG22: 1 | AH22: 1 | AI22: 0 | AJ22: 0 | AK22: 0 | AL22: 0 | AM22: 1 | AN22: 1 | AO22: 0 | AP22: 0 | AQ22: 0 | AR22: 0 | AS22: 1 | AT22: 0 | AU22: 1 | AV22: 0 | AW22: 0 | AX22: 0
B23: 17 | C23: 53 | D23: 36 | E23: 17 | F23: 2 | G23: 0 | H23: 2 | I23: 1 | J23: 0 | K23: 1 | L23: 1 | M23: 0 | N23: 1 | O23: 0 | P23: 0 | Q23: 0 | R23: 31 | S23: 22 | T23: 9 | U23: 7 | V23: 5 | W23: 2 | X23: 11 | Y23: 9 | Z23: 2 | AA23: 0 | AB23: 0 | AC23: 0 | AD23: 0 | AE23: 0 | AF23: 0 | AG23: 0 | AH23: 0 | AI23: 0 | AJ23: 0 | AK23: 0 | AL23: 0 | AM23: 0 | AN23: 0 | AO23: 0 | AP23: 0 | AQ23: 0 | AR23: 0 | AS23: 0 | AT23: 0 | AU23: 0 | AV23: 0 | AW23: 0 | AX23: 0
B24: 18 | C24: 47 | D24: 32 | E24: 15 | F24: 1 | G24: 0 | H24: 1 | I24: 1 | J24: 1 | K24: 0 | L24: 1 | M24: 1 | N24: 0 | O24: 0 | P24: 0 | Q24: 0 | R24: 34 | S24: 23 | T24: 11 | U24: 3 | V24: 1 | W24: 2 | X24: 6 | Y24: 5 | Z24: 1 | AA24: 0 | AB24: 0 | AC24: 0 | AD24: 0 | AE24: 0 | AF24: 0 | AG24: 0 | AH24: 0 | AI24: 0 | AJ24: 0 | AK24: 0 | AL24: 0 | AM24: 1 | AN24: 1 | AO24: 0 | AP24: 0 | AQ24: 0 | AR24: 0 | AS24: 0 | AT24: 0 | AU24: 0 | AV24: 0 | AW24: 0 | AX24: 0
B25: 19 | C25: 50 | D25: 30 | E25: 20 | F25: 6 | G25: 4 | H25: 2 | I25: 1 | J25: 1 | K25: 0 | L25: 3 | M25: 0 | N25: 3 | O25: 0 | P25: 0 | Q25: 0 | R25: 26 | S25: 17 | T25: 9 | U25: 5 | V25: 1 | W25: 4 | X25: 7 | Y25: 6 | Z25: 1 | AA25: 0 | AB25: 0 | AC25: 0 | AD25: 1 | AE25: 1 | AF25: 0 | AG25: 0 | AH25: 0 | AI25: 0 | AJ25: 0 | AK25: 0 | AL25: 0 | AM25: 1 | AN25: 0 | AO25: 1 | AP25: 0 | AQ25: 0 | AR25: 0 | AS25: 0 | AT25: 0 | AU25: 0 | AV25: 0 | AW25: 0 | AX25: 0
B26: 20 | C26: 53 | D26: 32 | E26: 21 | F26: 5 | G26: 2 | H26: 3 | I26: 3 | J26: 1 | K26: 2 | L26: 2 | M26: 2 | N26: 0 | O26: 0 | P26: 0 | Q26: 0 | R26: 33 | S26: 19 | T26: 14 | U26: 3 | V26: 2 | W26: 1 | X26: 7 | Y26: 6 | Z26: 1 | AA26: 0 | AB26: 0 | AC26: 0 | AD26: 0 | AE26: 0 | AF26: 0 | AG26: 0 | AH26: 0 | AI26: 0 | AJ26: 0 | AK26: 0 | AL26: 0 | AM26: 0 | AN26: 0 | AO26: 0 | AP26: 0 | AQ26: 0 | AR26: 0 | AS26: 0 | AT26: 0 | AU26: 0 | AV26: 0 | AW26: 0 | AX26: 0
B27: 21 | C27: 82 | D27: 58 | E27: 24 | F27: 7 | G27: 6 | H27: 1 | I27: 0 | J27: 0 | K27: 0 | L27: 4 | M27: 1 | N27: 3 | O27: 1 | P27: 1 | Q27: 0 | R27: 45 | S27: 29 | T27: 16 | U27: 10 | V27: 7 | W27: 3 | X27: 12 | Y27: 12 | Z27: 0 | AA27: 1 | AB27: 1 | AC27: 0 | AD27: 2 | AE27: 1 | AF27: 1 | AG27: 0 | AH27: 0 | AI27: 0 | AJ27: 0 | AK27: 0 | AL27: 0 | AM27: 0 | AN27: 0 | AO27: 0 | AP27: 0 | AQ27: 0 | AR27: 0 | AS27: 0 | AT27: 0 | AU27: 0 | AV27: 0 | AW27: 0 | AX27: 0
B28: 22 | C28: 65 | D28: 35 | E28: 30 | F28: 5 | G28: 2 | H28: 3 | I28: 2 | J28: 2 | K28: 0 | L28: 3 | M28: 0 | N28: 3 | O28: 1 | P28: 1 | Q28: 0 | R28: 38 | S28: 20 | T28: 18 | U28: 6 | V28: 2 | W28: 4 | X28: 5 | Y28: 5 | Z28: 0 | AA28: 0 | AB28: 0 | AC28: 0 | AD28: 0 | AE28: 0 | AF28: 0 | AG28: 2 | AH28: 2 | AI28: 0 | AJ28: 0 | AK28: 0 | AL28: 0 | AM28: 3 | AN28: 1 | AO28: 2 | AP28: 0 | AQ28: 0 | AR28: 0 | AS28: 0 | AT28: 0 | AU28: 0 | AV28: 0 | AW28: 0 | AX28: 0
B29: 23 | C29: 74 | D29: 44 | E29: 30 | F29: 5 | G29: 1 | H29: 4 | I29: 4 | J29: 2 | K29: 2 | L29: 6 | M29: 2 | N29: 4 | O29: 0 | P29: 0 | Q29: 0 | R29: 41 | S29: 29 | T29: 12 | U29: 3 | V29: 1 | W29: 2 | X29: 8 | Y29: 7 | Z29: 1 | AA29: 2 | AB29: 1 | AC29: 1 | AD29: 0 | AE29: 0 | AF29: 0 | AG29: 2 | AH29: 1 | AI29: 1 | AJ29: 0 | AK29: 0 | AL29: 0 | AM29: 3 | AN29: 0 | AO29: 3 | AP29: 0 | AQ29: 0 | AR29: 0 | AS29: 0 | AT29: 0 | AU29: 0 | AV29: 0 | AW29: 0 | AX29: 0
B30: 24 | C30: 91 | D30: 64 | E30: 27 | F30: 10 | G30: 7 | H30: 3 | I30: 7 | J30: 4 | K30: 3 | L30: 5 | M30: 4 | N30: 1 | O30: 0 | P30: 0 | Q30: 0 | R30: 44 | S30: 28 | T30: 16 | U30: 5 | V30: 5 | W30: 0 | X30: 15 | Y30: 14 | Z30: 1 | AA30: 3 | AB30: 2 | AC30: 1 | AD30: 1 | AE30: 0 | AF30: 1 | AG30: 0 | AH30: 0 | AI30: 0 | AJ30: 0 | AK30: 0 | AL30: 0 | AM30: 1 | AN30: 0 | AO30: 1 | AP30: 0 | AQ30: 0 | AR30: 0 | AS30: 0 | AT30: 0 | AU30: 0 | AV30: 0 | AW30: 0 | AX30: 0
B31: 25 | C31: 92 | D31: 54 | E31: 38 | F31: 9 | G31: 2 | H31: 7 | I31: 2 | J31: 1 | K31: 1 | L31: 7 | M31: 3 | N31: 4 | O31: 0 | P31: 0 | Q31: 0 | R31: 42 | S31: 27 | T31: 15 | U31: 7 | V31: 4 | W31: 3 | X31: 13 | Y31: 10 | Z31: 3 | AA31: 5 | AB31: 3 | AC31: 2 | AD31: 1 | AE31: 1 | AF31: 0 | AG31: 3 | AH31: 1 | AI31: 2 | AJ31: 1 | AK31: 1 | AL31: 0 | AM31: 1 | AN31: 1 | AO31: 0 | AP31: 0 | AQ31: 0 | AR31: 0 | AS31: 0 | AT31: 0 | AU31: 0 | AV31: 1 | AW31: 0 | AX31: 1
B32: 26 | C32: 85 | D32: 59 | E32: 26 | F32: 4 | G32: 1 | H32: 3 | I32: 6 | J32: 3 | K32: 3 | L32: 7 | M32: 4 | N32: 3 | O32: 0 | P32: 0 | Q32: 0 | R32: 41 | S32: 31 | T32: 10 | U32: 8 | V32: 6 | W32: 2 | X32: 15 | Y32: 13 | Z32: 2 | AA32: 1 | AB32: 0 | AC32: 1 | AD32: 0 | AE32: 0 | AF32: 0 | AG32: 0 | AH32: 0 | AI32: 0 | AJ32: 0 | AK32: 0 | AL32: 0 | AM32: 2 | AN32: 0 | AO32: 2 | AP32: 0 | AQ32: 0 | AR32: 0 | AS32: 0 | AT32: 0 | AU32: 0 | AV32: 1 | AW32: 1 | AX32: 0
B33: 27 | C33: 100 | D33: 56 | E33: 44 | F33: 15 | G33: 6 | H33: 9 | I33: 9 | J33: 6 | K33: 3 | L33: 5 | M33: 2 | N33: 3 | O33: 2 | P33: 2 | Q33: 0 | R33: 48 | S33: 28 | T33: 20 | U33: 6 | V33: 3 | W33: 3 | X33: 6 | Y33: 5 | Z33: 1 | AA33: 7 | AB33: 3 | AC33: 4 | AD33: 2 | AE33: 1 | AF33: 1 | AG33: 0 | AH33: 0 | AI33: 0 | AJ33: 0 | AK33: 0 | AL33: 0 | AM33: 0 | AN33: 0 | AO33: 0 | AP33: 0 | AQ33: 0 | AR33: 0 | AS33: 0 | AT33: 0 | AU33: 0 | AV33: 0 | AW33: 0 | AX33: 0
B34: 28 | C34: 106 | D34: 61 | E34: 45 | F34: 14 | G34: 5 | H34: 9 | I34: 15 | J34: 10 | K34: 5 | L34: 7 | M34: 4 | N34: 3 | O34: 2 | P34: 2 | Q34: 0 | R34: 45 | S34: 25 | T34: 20 | U34: 8 | V34: 3 | W34: 5 | X34: 10 | Y34: 8 | Z34: 2 | AA34: 4 | AB34: 3 | AC34: 1 | AD34: 0 | AE34: 0 | AF34: 0 | AG34: 0 | AH34: 0 | AI34: 0 | AJ34: 0 | AK34: 0 | AL34: 0 | AM34: 1 | AN34: 1 | AO34: 0 | AP34: 0 | AQ34: 0 | AR34: 0 | AS34: 0 | AT34: 0 | AU34: 0 | AV34: 0 | AW34: 0 | AX34: 0
B35: 29 | C35: 108 | D35: 72 | E35: 36 | F35: 12 | G35: 7 | H35: 5 | I35: 10 | J35: 7 | K35: 3 | L35: 5 | M35: 3 | N35: 2 | O35: 0 | P35: 0 | Q35: 0 | R35: 49 | S35: 34 | T35: 15 | U35: 9 | V35: 7 | W35: 2 | X35: 10 | Y35: 9 | Z35: 1 | AA35: 8 | AB35: 4 | AC35: 4 | AD35: 3 | AE35: 1 | AF35: 2 | AG35: 0 | AH35: 0 | AI35: 0 | AJ35: 0 | AK35: 0 | AL35: 0 | AM35: 0 | AN35: 0 | AO35: 0 | AP35: 0 | AQ35: 0 | AR35: 0 | AS35: 0 | AT35: 0 | AU35: 0 | AV35: 2 | AW35: 0 | AX35: 2
B36: 30 | C36: 94 | D36: 63 | E36: 31 | F36: 12 | G36: 7 | H36: 5 | I36: 8 | J36: 8 | K36: 0 | L36: 4 | M36: 2 | N36: 2 | O36: 0 | P36: 0 | Q36: 0 | R36: 43 | S36: 25 | T36: 18 | U36: 5 | V36: 3 | W36: 2 | X36: 11 | Y36: 10 | Z36: 1 | AA36: 6 | AB36: 5 | AC36: 1 | AD36: 1 | AE36: 1 | AF36: 0 | AG36: 0 | AH36: 0 | AI36: 0 | AJ36: 0 | AK36: 0 | AL36: 0 | AM36: 0 | AN36: 0 | AO36: 0 | AP36: 0 | AQ36: 0 | AR36: 0 | AS36: 2 | AT36: 1 | AU36: 1 | AV36: 2 | AW36: 1 | AX36: 1
B37: 31 | C37: 108 | D37: 67 | E37: 41 | F37: 11 | G37: 5 | H37: 6 | I37: 10 | J37: 6 | K37: 4 | L37: 5 | M37: 3 | N37: 2 | O37: 0 | P37: 0 | Q37: 0 | R37: 52 | S37: 34 | T37: 18 | U37: 13 | V37: 6 | W37: 7 | X37: 10 | Y37: 10 | Z37: 0 | AA37: 4 | AB37: 1 | AC37: 3 | AD37: 3 | AE37: 2 | AF37: 1 | AG37: 0 | AH37: 0 | AI37: 0 | AJ37: 0 | AK37: 0 | AL37: 0 | AM37: 0 | AN37: 0 | AO37: 0 | AP37: 0 | AQ37: 0 | AR37: 0 | AS37: 0 | AT37: 0 | AU37: 0 | AV37: 0 | AW37: 0 | AX37: 0
B38: 32 | C38: 112 | D38: 72 | E38: 40 | F38: 16 | G38: 13 | H38: 3 | I38: 13 | J38: 9 | K38: 4 | L38: 4 | M38: 1 | N38: 3 | O38: 2 | P38: 1 | Q38: 1 | R38: 53 | S38: 31 | T38: 22 | U38: 7 | V38: 6 | W38: 1 | X38: 9 | Y38: 7 | Z38: 2 | AA38: 4 | AB38: 2 | AC38: 2 | AD38: 2 | AE38: 1 | AF38: 1 | AG38: 0 | AH38: 0 | AI38: 0 | AJ38: 0 | AK38: 0 | AL38: 0 | AM38: 0 | AN38: 0 | AO38: 0 | AP38: 1 | AQ38: 1 | AR38: 0 | AS38: 1 | AT38: 0 | AU38: 1 | AV38: 0 | AW38: 0 | AX38: 0
B39: 33 | C39: 121 | D39: 76 | E39: 45 | F39: 17 | G39: 9 | H39: 8 | I39: 8 | J39: 4 | K39: 4 | L39: 8 | M39: 5 | N39: 3 | O39: 1 | P39: 0 | Q39: 1 | R39: 47 | S39: 34 | T39: 13 | U39: 14 | V39: 8 | W39: 6 | X39: 5 | Y39: 5 | Z39: 0 | AA39: 12 | AB39: 8 | AC39: 4 | AD39: 5 | AE39: 3 | AF39: 2 | AG39: 4 | AH39: 0 | AI39: 4 | AJ39: 0 | AK39: 0 | AL39: 0 | AM39: 0 | AN39: 0 | AO39: 0 | AP39: 0 | AQ39: 0 | AR39: 0 | AS39: 0 | AT39: 0 | AU39: 0 | AV39: 0 | AW39: 0 | AX39: 0
B40: 34 | C40: 104 | D40: 70 | E40: 34 | F40: 15 | G40: 11 | H40: 4 | I40: 10 | J40: 8 | K40: 2 | L40: 9 | M40: 6 | N40: 3 | O40: 0 | P40: 0 | Q40: 0 | R40: 35 | S40: 24 | T40: 11 | U40: 7 | V40: 4 | W40: 3 | X40: 11 | Y40: 10 | Z40: 1 | AA40: 11 | AB40: 5 | AC40: 6 | AD40: 5 | AE40: 2 | AF40: 3 | AG40: 1 | AH40: 0 | AI40: 1 | AJ40: 0 | AK40: 0 | AL40: 0 | AM40: 0 | AN40: 0 | AO40: 0 | AP40: 0 | AQ40: 0 | AR40: 0 | AS40: 0 | AT40: 0 | AU40: 0 | AV40: 0 | AW40: 0 | AX40: 0
B41: 35 | C41: 101 | D41: 65 | E41: 36 | F41: 18 | G41: 11 | H41: 7 | I41: 13 | J41: 10 | K41: 3 | L41: 5 | M41: 0 | N41: 5 | O41: 0 | P41: 0 | Q41: 0 | R41: 37 | S41: 26 | T41: 11 | U41: 6 | V41: 4 | W41: 2 | X41: 7 | Y41: 7 | Z41: 0 | AA41: 11 | AB41: 4 | AC41: 7 | AD41: 3 | AE41: 2 | AF41: 1 | AG41: 0 | AH41: 0 | AI41: 0 | AJ41: 0 | AK41: 0 | AL41: 0 | AM41: 0 | AN41: 0 | AO41: 0 | AP41: 0 | AQ41: 0 | AR41: 0 | AS41: 0 | AT41: 0 | AU41: 0 | AV41: 1 | AW41: 1 | AX41: 0
B42: 36 | C42: 84 | D42: 54 | E42: 30 | F42: 18 | G42: 14 | H42: 4 | I42: 11 | J42: 6 | K42: 5 | L42: 4 | M42: 2 | N42: 2 | O42: 1 | P42: 0 | Q42: 1 | R42: 27 | S42: 18 | T42: 9 | U42: 8 | V42: 4 | W42: 4 | X42: 6 | Y42: 4 | Z42: 2 | AA42: 6 | AB42: 3 | AC42: 3 | AD42: 2 | AE42: 2 | AF42: 0 | AG42: 0 | AH42: 0 | AI42: 0 | AJ42: 0 | AK42: 0 | AL42: 0 | AM42: 1 | AN42: 1 | AO42: 0 | AP42: 0 | AQ42: 0 | AR42: 0 | AS42: 0 | AT42: 0 | AU42: 0 | AV42: 0 | AW42: 0 | AX42: 0
B43: 37 | C43: 107 | D43: 75 | E43: 32 | F43: 27 | G43: 17 | H43: 10 | I43: 9 | J43: 7 | K43: 2 | L43: 4 | M43: 2 | N43: 2 | O43: 0 | P43: 0 | Q43: 0 | R43: 38 | S43: 29 | T43: 9 | U43: 11 | V43: 9 | W43: 2 | X43: 7 | Y43: 7 | Z43: 0 | AA43: 4 | AB43: 2 | AC43: 2 | AD43: 5 | AE43: 2 | AF43: 3 | AG43: 0 | AH43: 0 | AI43: 0 | AJ43: 0 | AK43: 0 | AL43: 0 | AM43: 0 | AN43: 0 | AO43: 0 | AP43: 0 | AQ43: 0 | AR43: 0 | AS43: 0 | AT43: 0 | AU43: 0 | AV43: 2 | AW43: 0 | AX43: 2
B44: 38 | C44: 106 | D44: 65 | E44: 41 | F44: 25 | G44: 14 | H44: 11 | I44: 15 | J44: 11 | K44: 4 | L44: 3 | M44: 2 | N44: 1 | O44: 0 | P44: 0 | Q44: 0 | R44: 27 | S44: 16 | T44: 11 | U44: 9 | V44: 6 | W44: 3 | X44: 4 | Y44: 4 | Z44: 0 | AA44: 15 | AB44: 9 | AC44: 6 | AD44: 4 | AE44: 1 | AF44: 3 | AG44: 1 | AH44: 0 | AI44: 1 | AJ44: 0 | AK44: 0 | AL44: 0 | AM44: 0 | AN44: 0 | AO44: 0 | AP44: 1 | AQ44: 1 | AR44: 0 | AS44: 2 | AT44: 1 | AU44: 1 | AV44: 0 | AW44: 0 | AX44: 0
B45: 39 | C45: 106 | D45: 63 | E45: 43 | F45: 30 | G45: 19 | H45: 11 | I45: 16 | J45: 9 | K45: 7 | L45: 3 | M45: 2 | N45: 1 | O45: 1 | P45: 1 | Q45: 0 | R45: 27 | S45: 15 | T45: 12 | U45: 4 | V45: 3 | W45: 1 | X45: 6 | Y45: 6 | Z45: 0 | AA45: 10 | AB45: 6 | AC45: 4 | AD45: 5 | AE45: 2 | AF45: 3 | AG45: 0 | AH45: 0 | AI45: 0 | AJ45: 1 | AK45: 0 | AL45: 1 | AM45: 1 | AN45: 0 | AO45: 1 | AP45: 0 | AQ45: 0 | AR45: 0 | AS45: 1 | AT45: 0 | AU45: 1 | AV45: 1 | AW45: 0 | AX45: 1
B46: 40 | C46: 110 | D46: 61 | E46: 49 | F46: 31 | G46: 18 | H46: 13 | I46: 12 | J46: 6 | K46: 6 | L46: 2 | M46: 1 | N46: 1 | O46: 1 | P46: 0 | Q46: 1 | R46: 22 | S46: 13 | T46: 9 | U46: 12 | V46: 8 | W46: 4 | X46: 2 | Y46: 1 | Z46: 1 | AA46: 15 | AB46: 8 | AC46: 7 | AD46: 9 | AE46: 4 | AF46: 5 | AG46: 0 | AH46: 0 | AI46: 0 | AJ46: 0 | AK46: 0 | AL46: 0 | AM46: 1 | AN46: 1 | AO46: 0 | AP46: 0 | AQ46: 0 | AR46: 0 | AS46: 0 | AT46: 0 | AU46: 0 | AV46: 3 | AW46: 1 | AX46: 2
A47: 합계 | B47: 41 | C47: 110 | D47: 76 | E47: 34 | F47: 32 | G47: 27 | H47: 5 | I47: 10 | J47: 7 | K47: 3 | L47: 2 | M47: 1 | N47: 1 | O47: 0 | P47: 0 | Q47: 0 | R47: 32 | S47: 22 | T47: 10 | U47: 12 | V47: 7 | W47: 5 | X47: 1 | Y47: 0 | Z47: 1 | AA47: 16 | AB47: 10 | AC47: 6 | AD47: 3 | AE47: 0 | AF47: 3 | AG47: 0 | AH47: 0 | AI47: 0 | AJ47: 0 | AK47: 0 | AL47: 0 | AM47: 0 | AN47: 0 | AO47: 0 | AP47: 0 | AQ47: 0 | AR47: 0 | AS47: 1 | AT47: 1 | AU47: 0 | AV47: 1 | AW47: 1 | AX47: 0
B48: 42 | C48: 132 | D48: 93 | E48: 39 | F48: 46 | G48: 38 | H48: 8 | I48: 20 | J48: 18 | K48: 2 | L48: 3 | M48: 2 | N48: 1 | O48: 0 | P48: 0 | Q48: 0 | R48: 24 | S48: 10 | T48: 14 | U48: 16 | V48: 11 | W48: 5 | X48: 0 | Y48: 0 | Z48: 0 | AA48: 12 | AB48: 7 | AC48: 5 | AD48: 6 | AE48: 3 | AF48: 3 | AG48: 2 | AH48: 2 | AI48: 0 | AJ48: 1 | AK48: 1 | AL48: 0 | AM48: 1 | AN48: 0 | AO48: 1 | AP48: 0 | AQ48: 0 | AR48: 0 | AS48: 0 | AT48: 0 | AU48: 0 | AV48: 1 | AW48: 1 | AX48: 0
B49: 43 | C49: 134 | D49: 89 | E49: 45 | F49: 40 | G49: 34 | H49: 6 | I49: 20 | J49: 14 | K49: 6 | L49: 7 | M49: 3 | N49: 4 | O49: 3 | P49: 1 | Q49: 2 | R49: 30 | S49: 19 | T49: 11 | U49: 8 | V49: 5 | W49: 3 | X49: 3 | Y49: 2 | Z49: 1 | AA49: 13 | AB49: 7 | AC49: 6 | AD49: 7 | AE49: 3 | AF49: 4 | AG49: 0 | AH49: 0 | AI49: 0 | AJ49: 0 | AK49: 0 | AL49: 0 | AM49: 0 | AN49: 0 | AO49: 0 | AP49: 0 | AQ49: 0 | AR49: 0 | AS49: 0 | AT49: 0 | AU49: 0 | AV49: 3 | AW49: 1 | AX49: 2
B50: 44 | C50: 164 | D50: 117 | E50: 47 | F50: 54 | G50: 40 | H50: 14 | I50: 23 | J50: 18 | K50: 5 | L50: 10 | M50: 6 | N50: 4 | O50: 0 | P50: 0 | Q50: 0 | R50: 36 | S50: 28 | T50: 8 | U50: 18 | V50: 11 | W50: 7 | X50: 2 | Y50: 2 | Z50: 0 | AA50: 12 | AB50: 6 | AC50: 6 | AD50: 8 | AE50: 6 | AF50: 2 | AG50: 0 | AH50: 0 | AI50: 0 | AJ50: 1 | AK50: 0 | AL50: 1 | AM50: 0 | AN50: 0 | AO50: 0 | AP50: 0 | AQ50: 0 | AR50: 0 | AS50: 0 | AT50: 0 | AU50: 0 | AV50: 0 | AW50: 0 | AX50: 0
B51: 45 | C51: 158 | D51: 101 | E51: 57 | F51: 56 | G51: 41 | H51: 15 | I51: 11 | J51: 6 | K51: 5 | L51: 11 | M51: 6 | N51: 5 | O51: 0 | P51: 0 | Q51: 0 | R51: 29 | S51: 16 | T51: 13 | U51: 16 | V51: 11 | W51: 5 | X51: 0 | Y51: 0 | Z51: 0 | AA51: 19 | AB51: 11 | AC51: 8 | AD51: 12 | AE51: 8 | AF51: 4 | AG51: 0 | AH51: 0 | AI51: 0 | AJ51: 0 | AK51: 0 | AL51: 0 | AM51: 2 | AN51: 2 | AO51: 0 | AP51: 0 | AQ51: 0 | AR51: 0 | AS51: 1 | AT51: 0 | AU51: 1 | AV51: 1 | AW51: 0 | AX51: 1
B52: 46 | C52: 157 | D52: 108 | E52: 49 | F52: 68 | G52: 54 | H52: 14 | I52: 16 | J52: 10 | K52: 6 | L52: 10 | M52: 4 | N52: 6 | O52: 0 | P52: 0 | Q52: 0 | R52: 24 | S52: 15 | T52: 9 | U52: 12 | V52: 10 | W52: 2 | X52: 0 | Y52: 0 | Z52: 0 | AA52: 17 | AB52: 8 | AC52: 9 | AD52: 7 | AE52: 4 | AF52: 3 | AG52: 2 | AH52: 2 | AI52: 0 | AJ52: 0 | AK52: 0 | AL52: 0 | AM52: 1 | AN52: 1 | AO52: 0 | AP52: 0 | AQ52: 0 | AR52: 0 | AS52: 0 | AT52: 0 | AU52: 0 | AV52: 0 | AW52: 0 | AX52: 0
B53: 47 | C53: 146 | D53: 106 | E53: 40 | F53: 56 | G53: 44 | H53: 12 | I53: 21 | J53: 14 | K53: 7 | L53: 5 | M53: 3 | N53: 2 | O53: 2 | P53: 2 | Q53: 0 | R53: 20 | S53: 15 | T53: 5 | U53: 14 | V53: 7 | W53: 7 | X53: 0 | Y53: 0 | Z53: 0 | AA53: 19 | AB53: 14 | AC53: 5 | AD53: 7 | AE53: 6 | AF53: 1 | AG53: 0 | AH53: 0 | AI53: 0 | AJ53: 0 | AK53: 0 | AL53: 0 | AM53: 0 | AN53: 0 | AO53: 0 | AP53: 1 | AQ53: 0 | AR53: 1 | AS53: 0 | AT53: 0 | AU53: 0 | AV53: 1 | AW53: 1 | AX53: 0
B54: 48 | C54: 171 | D54: 127 | E54: 44 | F54: 49 | G54: 41 | H54: 8 | I54: 19 | J54: 12 | K54: 7 | L54: 7 | M54: 2 | N54: 5 | O54: 1 | P54: 1 | Q54: 0 | R54: 41 | S54: 25 | T54: 16 | U54: 12 | V54: 11 | W54: 1 | X54: 0 | Y54: 0 | Z54: 0 | AA54: 28 | AB54: 23 | AC54: 5 | AD54: 7 | AE54: 6 | AF54: 1 | AG54: 0 | AH54: 0 | AI54: 0 | AJ54: 1 | AK54: 1 | AL54: 0 | AM54: 2 | AN54: 2 | AO54: 0 | AP54: 2 | AQ54: 2 | AR54: 0 | AS54: 0 | AT54: 0 | AU54: 0 | AV54: 2 | AW54: 1 | AX54: 1
B55: 49 | C55: 191 | D55: 129 | E55: 62 | F55: 75 | G55: 58 | H55: 17 | I55: 25 | J55: 12 | K55: 13 | L55: 9 | M55: 2 | N55: 7 | O55: 0 | P55: 0 | Q55: 0 | R55: 33 | S55: 25 | T55: 8 | U55: 17 | V55: 10 | W55: 7 | X55: 2 | Y55: 2 | Z55: 0 | AA55: 19 | AB55: 13 | AC55: 6 | AD55: 8 | AE55: 5 | AF55: 3 | AG55: 0 | AH55: 0 | AI55: 0 | AJ55: 1 | AK55: 1 | AL55: 0 | AM55: 1 | AN55: 0 | AO55: 1 | AP55: 0 | AQ55: 0 | AR55: 0 | AS55: 1 | AT55: 1 | AU55: 0 | AV55: 0 | AW55: 0 | AX55: 0
B56: 50 | C56: 225 | D56: 157 | E56: 68 | F56: 79 | G56: 67 | H56: 12 | I56: 23 | J56: 17 | K56: 6 | L56: 11 | M56: 4 | N56: 7 | O56: 6 | P56: 3 | Q56: 3 | R56: 27 | S56: 16 | T56: 11 | U56: 29 | V56: 18 | W56: 11 | X56: 1 | Y56: 1 | Z56: 0 | AA56: 30 | AB56: 18 | AC56: 12 | AD56: 11 | AE56: 9 | AF56: 2 | AG56: 0 | AH56: 0 | AI56: 0 | AJ56: 0 | AK56: 0 | AL56: 0 | AM56: 2 | AN56: 2 | AO56: 0 | AP56: 0 | AQ56: 0 | AR56: 0 | AS56: 2 | AT56: 1 | AU56: 1 | AV56: 4 | AW56: 1 | AX56: 3
B57: 51 | C57: 247 | D57: 160 | E57: 87 | F57: 74 | G57: 52 | H57: 22 | I57: 39 | J57: 23 | K57: 16 | L57: 12 | M57: 3 | N57: 9 | O57: 5 | P57: 4 | Q57: 1 | R57: 29 | S57: 21 | T57: 8 | U57: 28 | V57: 19 | W57: 9 | X57: 0 | Y57: 0 | Z57: 0 | AA57: 36 | AB57: 23 | AC57: 13 | AD57: 15 | AE57: 10 | AF57: 5 | AG57: 1 | AH57: 1 | AI57: 0 | AJ57: 1 | AK57: 1 | AL57: 0 | AM57: 2 | AN57: 2 | AO57: 0 | AP57: 2 | AQ57: 0 | AR57: 2 | AS57: 0 | AT57: 0 | AU57: 0 | AV57: 3 | AW57: 1 | AX57: 2
B58: 52 | C58: 261 | D58: 187 | E58: 74 | F58: 97 | G58: 79 | H58: 18 | I58: 33 | J58: 27 | K58: 6 | L58: 10 | M58: 5 | N58: 5 | O58: 3 | P58: 1 | Q58: 2 | R58: 27 | S58: 21 | T58: 6 | U58: 28 | V58: 17 | W58: 11 | X58: 1 | Y58: 1 | Z58: 0 | AA58: 41 | AB58: 22 | AC58: 19 | AD58: 11 | AE58: 9 | AF58: 2 | AG58: 1 | AH58: 0 | AI58: 1 | AJ58: 0 | AK58: 0 | AL58: 0 | AM58: 3 | AN58: 1 | AO58: 2 | AP58: 0 | AQ58: 0 | AR58: 0 | AS58: 1 | AT58: 1 | AU58: 0 | AV58: 5 | AW58: 3 | AX58: 2
B59: 53 | C59: 287 | D59: 196 | E59: 91 | F59: 105 | G59: 79 | H59: 26 | I59: 26 | J59: 17 | K59: 9 | L59: 17 | M59: 10 | N59: 7 | O59: 2 | P59: 2 | Q59: 0 | R59: 43 | S59: 30 | T59: 13 | U59: 24 | V59: 19 | W59: 5 | X59: 0 | Y59: 0 | Z59: 0 | AA59: 37 | AB59: 19 | AC59: 18 | AD59: 22 | AE59: 14 | AF59: 8 | AG59: 0 | AH59: 0 | AI59: 0 | AJ59: 3 | AK59: 1 | AL59: 2 | AM59: 2 | AN59: 1 | AO59: 1 | AP59: 3 | AQ59: 1 | AR59: 2 | AS59: 2 | AT59: 2 | AU59: 0 | AV59: 1 | AW59: 1 | AX59: 0
B60: 54 | C60: 281 | D60: 182 | E60: 99 | F60: 103 | G60: 73 | H60: 30 | I60: 35 | J60: 21 | K60: 14 | L60: 12 | M60: 6 | N60: 6 | O60: 1 | P60: 1 | Q60: 0 | R60: 29 | S60: 17 | T60: 12 | U60: 26 | V60: 20 | W60: 6 | X60: 0 | Y60: 0 | Z60: 0 | AA60: 44 | AB60: 23 | AC60: 21 | AD60: 19 | AE60: 14 | AF60: 5 | AG60: 2 | AH60: 1 | AI60: 1 | AJ60: 0 | AK60: 0 | AL60: 0 | AM60: 8 | AN60: 6 | AO60: 2 | AP60: 0 | AQ60: 0 | AR60: 0 | AS60: 1 | AT60: 0 | AU60: 1 | AV60: 1 | AW60: 0 | AX60: 1
B61: 55 | C61: 301 | D61: 204 | E61: 97 | F61: 132 | G61: 96 | H61: 36 | I61: 28 | J61: 21 | K61: 7 | L61: 9 | M61: 3 | N61: 6 | O61: 1 | P61: 1 | Q61: 0 | R61: 25 | S61: 19 | T61: 6 | U61: 29 | V61: 19 | W61: 10 | X61: 0 | Y61: 0 | Z61: 0 | AA61: 40 | AB61: 26 | AC61: 14 | AD61: 24 | AE61: 14 | AF61: 10 | AG61: 0 | AH61: 0 | AI61: 0 | AJ61: 1 | AK61: 0 | AL61: 1 | AM61: 3 | AN61: 2 | AO61: 1 | AP61: 0 | AQ61: 0 | AR61: 0 | AS61: 4 | AT61: 2 | AU61: 2 | AV61: 5 | AW61: 1 | AX61: 4
B62: 56 | C62: 331 | D62: 232 | E62: 99 | F62: 132 | G62: 96 | H62: 36 | I62: 55 | J62: 35 | K62: 20 | L62: 17 | M62: 13 | N62: 4 | O62: 4 | P62: 2 | Q62: 2 | R62: 17 | S62: 12 | T62: 5 | U62: 30 | V62: 22 | W62: 8 | X62: 0 | Y62: 0 | Z62: 0 | AA62: 42 | AB62: 29 | AC62: 13 | AD62: 25 | AE62: 17 | AF62: 8 | AG62: 1 | AH62: 1 | AI62: 0 | AJ62: 1 | AK62: 1 | AL62: 0 | AM62: 6 | AN62: 4 | AO62: 2 | AP62: 0 | AQ62: 0 | AR62: 0 | AS62: 1 | AT62: 0 | AU62: 1 | AV62: 0 | AW62: 0 | AX62: 0
B63: 57 | C63: 329 | D63: 217 | E63: 112 | F63: 146 | G63: 111 | H63: 35 | I63: 32 | J63: 18 | K63: 14 | L63: 19 | M63: 10 | N63: 9 | O63: 5 | P63: 2 | Q63: 3 | R63: 16 | S63: 9 | T63: 7 | U63: 32 | V63: 19 | W63: 13 | X63: 0 | Y63: 0 | Z63: 0 | AA63: 46 | AB63: 27 | AC63: 19 | AD63: 23 | AE63: 14 | AF63: 9 | AG63: 1 | AH63: 0 | AI63: 1 | AJ63: 0 | AK63: 0 | AL63: 0 | AM63: 5 | AN63: 5 | AO63: 0 | AP63: 0 | AQ63: 0 | AR63: 0 | AS63: 2 | AT63: 1 | AU63: 1 | AV63: 2 | AW63: 1 | AX63: 1
B64: 58 | C64: 341 | D64: 233 | E64: 108 | F64: 154 | G64: 108 | H64: 46 | I64: 36 | J64: 21 | K64: 15 | L64: 25 | M64: 14 | N64: 11 | O64: 4 | P64: 4 | Q64: 0 | R64: 17 | S64: 14 | T64: 3 | U64: 23 | V64: 18 | W64: 5 | X64: 0 | Y64: 0 | Z64: 0 | AA64: 51 | AB64: 32 | AC64: 19 | AD64: 21 | AE64: 15 | AF64: 6 | AG64: 0 | AH64: 0 | AI64: 0 | AJ64: 2 | AK64: 1 | AL64: 1 | AM64: 3 | AN64: 3 | AO64: 0 | AP64: 1 | AQ64: 1 | AR64: 0 | AS64: 3 | AT64: 1 | AU64: 2 | AV64: 1 | AW64: 1 | AX64: 0
B65: 59 | C65: 328 | D65: 206 | E65: 122 | F65: 132 | G65: 87 | H65: 45 | I65: 47 | J65: 28 | K65: 19 | L65: 25 | M65: 15 | N65: 10 | O65: 3 | P65: 2 | Q65: 1 | R65: 20 | S65: 14 | T65: 6 | U65: 36 | V65: 24 | W65: 12 | X65: 0 | Y65: 0 | Z65: 0 | AA65: 26 | AB65: 13 | AC65: 13 | AD65: 28 | AE65: 14 | AF65: 14 | AG65: 2 | AH65: 2 | AI65: 0 | AJ65: 1 | AK65: 1 | AL65: 0 | AM65: 6 | AN65: 4 | AO65: 2 | AP65: 0 | AQ65: 0 | AR65: 0 | AS65: 2 | AT65: 2 | AU65: 0 | AV65: 0 | AW65: 0 | AX65: 0
B66: 60 | C66: 342 | D66: 231 | E66: 111 | F66: 151 | G66: 107 | H66: 44 | I66: 43 | J66: 26 | K66: 17 | L66: 33 | M66: 19 | N66: 14 | O66: 2 | P66: 2 | Q66: 0 | R66: 13 | S66: 8 | T66: 5 | U66: 33 | V66: 22 | W66: 11 | X66: 0 | Y66: 0 | Z66: 0 | AA66: 32 | AB66: 20 | AC66: 12 | AD66: 25 | AE66: 18 | AF66: 7 | AG66: 0 | AH66: 0 | AI66: 0 | AJ66: 1 | AK66: 1 | AL66: 0 | AM66: 7 | AN66: 6 | AO66: 1 | AP66: 0 | AQ66: 0 | AR66: 0 | AS66: 2 | AT66: 2 | AU66: 0 | AV66: 0 | AW66: 0 | AX66: 0
B67: 61 | C67: 359 | D67: 245 | E67: 114 | F67: 166 | G67: 114 | H67: 52 | I67: 45 | J67: 32 | K67: 13 | L67: 28 | M67: 20 | N67: 8 | O67: 2 | P67: 1 | Q67: 1 | R67: 13 | S67: 7 | T67: 6 | U67: 42 | V67: 33 | W67: 9 | X67: 0 | Y67: 0 | Z67: 0 | AA67: 26 | AB67: 15 | AC67: 11 | AD67: 25 | AE67: 15 | AF67: 10 | AG67: 2 | AH67: 1 | AI67: 1 | AJ67: 1 | AK67: 0 | AL67: 1 | AM67: 5 | AN67: 4 | AO67: 1 | AP67: 0 | AQ67: 0 | AR67: 0 | AS67: 4 | AT67: 3 | AU67: 1 | AV67: 0 | AW67: 0 | AX67: 0
B68: 62 | C68: 411 | D68: 280 | E68: 131 | F68: 204 | G68: 147 | H68: 57 | I68: 52 | J68: 34 | K68: 18 | L68: 27 | M68: 18 | N68: 9 | O68: 2 | P68: 2 | Q68: 0 | R68: 19 | S68: 17 | T68: 2 | U68: 34 | V68: 21 | W68: 13 | X68: 0 | Y68: 0 | Z68: 0 | AA68: 33 | AB68: 18 | AC68: 15 | AD68: 26 | AE68: 14 | AF68: 12 | AG68: 1 | AH68: 0 | AI68: 1 | AJ68: 2 | AK68: 2 | AL68: 0 | AM68: 7 | AN68: 4 | AO68: 3 | AP68: 1 | AQ68: 0 | AR68: 1 | AS68: 2 | AT68: 2 | AU68: 0 | AV68: 1 | AW68: 1 | AX68: 0
B69: 63 | C69: 410 | D69: 299 | E69: 111 | F69: 191 | G69: 137 | H69: 54 | I69: 50 | J69: 37 | K69: 13 | L69: 36 | M69: 24 | N69: 12 | O69: 4 | P69: 4 | Q69: 0 | R69: 16 | S69: 13 | T69: 3 | U69: 40 | V69: 33 | W69: 7 | X69: 0 | Y69: 0 | Z69: 0 | AA69: 34 | AB69: 25 | AC69: 9 | AD69: 20 | AE69: 14 | AF69: 6 | AG69: 2 | AH69: 2 | AI69: 0 | AJ69: 4 | AK69: 1 | AL69: 3 | AM69: 6 | AN69: 3 | AO69: 3 | AP69: 0 | AQ69: 0 | AR69: 0 | AS69: 3 | AT69: 3 | AU69: 0 | AV69: 4 | AW69: 3 | AX69: 1
B70: 64 | C70: 523 | D70: 326 | E70: 197 | F70: 241 | G70: 152 | H70: 89 | I70: 60 | J70: 35 | K70: 25 | L70: 59 | M70: 34 | N70: 25 | O70: 4 | P70: 4 | Q70: 0 | R70: 15 | S70: 11 | T70: 4 | U70: 53 | V70: 28 | W70: 25 | X70: 0 | Y70: 0 | Z70: 0 | AA70: 35 | AB70: 25 | AC70: 10 | AD70: 31 | AE70: 20 | AF70: 11 | AG70: 1 | AH70: 1 | AI70: 0 | AJ70: 1 | AK70: 1 | AL70: 0 | AM70: 8 | AN70: 6 | AO70: 2 | AP70: 1 | AQ70: 0 | AR70: 1 | AS70: 10 | AT70: 5 | AU70: 5 | AV70: 4 | AW70: 4 | AX70: 0
B71: 65 | C71: 535 | D71: 347 | E71: 188 | F71: 255 | G71: 172 | H71: 83 | I71: 54 | J71: 35 | K71: 19 | L71: 51 | M71: 28 | N71: 23 | O71: 9 | P71: 7 | Q71: 2 | R71: 15 | S71: 12 | T71: 3 | U71: 54 | V71: 37 | W71: 17 | X71: 0 | Y71: 0 | Z71: 0 | AA71: 40 | AB71: 24 | AC71: 16 | AD71: 32 | AE71: 19 | AF71: 13 | AG71: 2 | AH71: 2 | AI71: 0 | AJ71: 7 | AK71: 3 | AL71: 4 | AM71: 9 | AN71: 5 | AO71: 4 | AP71: 0 | AQ71: 0 | AR71: 0 | AS71: 7 | AT71: 3 | AU71: 4 | AV71: 0 | AW71: 0 | AX71: 0
B72: 66 | C72: 490 | D72: 321 | E72: 169 | F72: 227 | G72: 153 | H72: 74 | I72: 47 | J72: 36 | K72: 11 | L72: 58 | M72: 28 | N72: 30 | O72: 4 | P72: 2 | Q72: 2 | R72: 15 | S72: 8 | T72: 7 | U72: 55 | V72: 41 | W72: 14 | X72: 0 | Y72: 0 | Z72: 0 | AA72: 39 | AB72: 25 | AC72: 14 | AD72: 32 | AE72: 19 | AF72: 13 | AG72: 0 | AH72: 0 | AI72: 0 | AJ72: 4 | AK72: 3 | AL72: 1 | AM72: 5 | AN72: 3 | AO72: 2 | AP72: 1 | AQ72: 1 | AR72: 0 | AS72: 3 | AT72: 2 | AU72: 1 | AV72: 0 | AW72: 0 | AX72: 0
B73: 67 | C73: 468 | D73: 285 | E73: 183 | F73: 233 | G73: 139 | H73: 94 | I73: 48 | J73: 28 | K73: 20 | L73: 54 | M73: 35 | N73: 19 | O73: 3 | P73: 0 | Q73: 3 | R73: 5 | S73: 3 | T73: 2 | U73: 63 | V73: 39 | W73: 24 | X73: 0 | Y73: 0 | Z73: 0 | AA73: 19 | AB73: 13 | AC73: 6 | AD73: 29 | AE73: 18 | AF73: 11 | AG73: 1 | AH73: 1 | AI73: 0 | AJ73: 5 | AK73: 3 | AL73: 2 | AM73: 3 | AN73: 2 | AO73: 1 | AP73: 3 | AQ73: 3 | AR73: 0 | AS73: 2 | AT73: 1 | AU73: 1 | AV73: 0 | AW73: 0 | AX73: 0
B74: 68 | C74: 479 | D74: 287 | E74: 192 | F74: 243 | G74: 142 | H74: 101 | I74: 43 | J74: 25 | K74: 18 | L74: 57 | M74: 35 | N74: 22 | O74: 2 | P74: 1 | Q74: 1 | R74: 12 | S74: 8 | T74: 4 | U74: 45 | V74: 30 | W74: 15 | X74: 0 | Y74: 0 | Z74: 0 | AA74: 26 | AB74: 16 | AC74: 10 | AD74: 32 | AE74: 17 | AF74: 15 | AG74: 1 | AH74: 1 | AI74: 0 | AJ74: 6 | AK74: 2 | AL74: 4 | AM74: 3 | AN74: 3 | AO74: 0 | AP74: 1 | AQ74: 1 | AR74: 0 | AS74: 6 | AT74: 4 | AU74: 2 | AV74: 2 | AW74: 2 | AX74: 0
B75: 69 | C75: 479 | D75: 284 | E75: 195 | F75: 232 | G75: 131 | H75: 101 | I75: 50 | J75: 32 | K75: 18 | L75: 56 | M75: 26 | N75: 30 | O75: 5 | P75: 4 | Q75: 1 | R75: 8 | S75: 5 | T75: 3 | U75: 51 | V75: 33 | W75: 18 | X75: 0 | Y75: 0 | Z75: 0 | AA75: 25 | AB75: 21 | AC75: 4 | AD75: 33 | AE75: 19 | AF75: 14 | AG75: 2 | AH75: 1 | AI75: 1 | AJ75: 8 | AK75: 6 | AL75: 2 | AM75: 5 | AN75: 4 | AO75: 1 | AP75: 0 | AQ75: 0 | AR75: 0 | AS75: 2 | AT75: 1 | AU75: 1 | AV75: 2 | AW75: 1 | AX75: 1
B76: 70 | C76: 533 | D76: 306 | E76: 227 | F76: 259 | G76: 149 | H76: 110 | I76: 55 | J76: 30 | K76: 25 | L76: 69 | M76: 36 | N76: 33 | O76: 4 | P76: 3 | Q76: 1 | R76: 8 | S76: 3 | T76: 5 | U76: 66 | V76: 41 | W76: 25 | X76: 0 | Y76: 0 | Z76: 0 | AA76: 24 | AB76: 13 | AC76: 11 | AD76: 31 | AE76: 21 | AF76: 10 | AG76: 1 | AH76: 0 | AI76: 1 | AJ76: 6 | AK76: 5 | AL76: 1 | AM76: 2 | AN76: 2 | AO76: 0 | AP76: 0 | AQ76: 0 | AR76: 0 | AS76: 6 | AT76: 2 | AU76: 4 | AV76: 2 | AW76: 1 | AX76: 1
B77: 71 | C77: 468 | D77: 257 | E77: 211 | F77: 244 | G77: 121 | H77: 123 | I77: 43 | J77: 26 | K77: 17 | L77: 61 | M77: 39 | N77: 22 | O77: 2 | P77: 2 | Q77: 0 | R77: 3 | S77: 3 | T77: 0 | U77: 54 | V77: 31 | W77: 23 | X77: 0 | Y77: 0 | Z77: 0 | AA77: 14 | AB77: 3 | AC77: 11 | AD77: 26 | AE77: 20 | AF77: 6 | AG77: 0 | AH77: 0 | AI77: 0 | AJ77: 5 | AK77: 3 | AL77: 2 | AM77: 7 | AN77: 4 | AO77: 3 | AP77: 0 | AQ77: 0 | AR77: 0 | AS77: 9 | AT77: 5 | AU77: 4 | AV77: 0 | AW77: 0 | AX77: 0
B78: 72 | C78: 507 | D78: 295 | E78: 212 | F78: 248 | G78: 126 | H78: 122 | I78: 61 | J78: 30 | K78: 31 | L78: 80 | M78: 53 | N78: 27 | O78: 6 | P78: 6 | Q78: 0 | R78: 2 | S78: 1 | T78: 1 | U78: 48 | V78: 38 | W78: 10 | X78: 0 | Y78: 0 | Z78: 0 | AA78: 20 | AB78: 14 | AC78: 6 | AD78: 29 | AE78: 18 | AF78: 11 | AG78: 0 | AH78: 0 | AI78: 0 | AJ78: 3 | AK78: 2 | AL78: 1 | AM78: 5 | AN78: 2 | AO78: 3 | AP78: 0 | AQ78: 0 | AR78: 0 | AS78: 5 | AT78: 5 | AU78: 0 | AV78: 0 | AW78: 0 | AX78: 0
B79: 73 | C79: 461 | D79: 258 | E79: 203 | F79: 222 | G79: 99 | H79: 123 | I79: 50 | J79: 33 | K79: 17 | L79: 76 | M79: 49 | N79: 27 | O79: 3 | P79: 3 | Q79: 0 | R79: 9 | S79: 7 | T79: 2 | U79: 58 | V79: 39 | W79: 19 | X79: 0 | Y79: 0 | Z79: 0 | AA79: 11 | AB79: 6 | AC79: 5 | AD79: 21 | AE79: 15 | AF79: 6 | AG79: 0 | AH79: 0 | AI79: 0 | AJ79: 1 | AK79: 1 | AL79: 0 | AM79: 5 | AN79: 4 | AO79: 1 | AP79: 1 | AQ79: 0 | AR79: 1 | AS79: 4 | AT79: 2 | AU79: 2 | AV79: 0 | AW79: 0 | AX79: 0
B80: 74 | C80: 438 | D80: 230 | E80: 208 | F80: 216 | G80: 106 | H80: 110 | I80: 39 | J80: 20 | K80: 19 | L80: 80 | M80: 48 | N80: 32 | O80: 4 | P80: 4 | Q80: 0 | R80: 6 | S80: 5 | T80: 1 | U80: 48 | V80: 22 | W80: 26 | X80: 0 | Y80: 0 | Z80: 0 | AA80: 11 | AB80: 6 | AC80: 5 | AD80: 25 | AE80: 12 | AF80: 13 | AG80: 0 | AH80: 0 | AI80: 0 | AJ80: 3 | AK80: 3 | AL80: 0 | AM80: 2 | AN80: 2 | AO80: 0 | AP80: 1 | AQ80: 1 | AR80: 0 | AS80: 3 | AT80: 1 | AU80: 2 | AV80: 0 | AW80: 0 | AX80: 0
B81: 75 | C81: 568 | D81: 314 | E81: 254 | F81: 251 | G81: 115 | H81: 136 | I81: 78 | J81: 36 | K81: 42 | L81: 107 | M81: 75 | N81: 32 | O81: 4 | P81: 2 | Q81: 2 | R81: 5 | S81: 5 | T81: 0 | U81: 60 | V81: 37 | W81: 23 | X81: 0 | Y81: 0 | Z81: 0 | AA81: 15 | AB81: 12 | AC81: 3 | AD81: 31 | AE81: 19 | AF81: 12 | AG81: 0 | AH81: 0 | AI81: 0 | AJ81: 8 | AK81: 7 | AL81: 1 | AM81: 4 | AN81: 4 | AO81: 0 | AP81: 0 | AQ81: 0 | AR81: 0 | AS81: 5 | AT81: 2 | AU81: 3 | AV81: 0 | AW81: 0 | AX81: 0
B82: 76 | C82: 481 | D82: 249 | E82: 232 | F82: 227 | G82: 101 | H82: 126 | I82: 60 | J82: 38 | K82: 22 | L82: 100 | M82: 59 | N82: 41 | O82: 2 | P82: 2 | Q82: 0 | R82: 2 | S82: 1 | T82: 1 | U82: 51 | V82: 28 | W82: 23 | X82: 0 | Y82: 0 | Z82: 0 | AA82: 9 | AB82: 5 | AC82: 4 | AD82: 21 | AE82: 9 | AF82: 12 | AG82: 0 | AH82: 0 | AI82: 0 | AJ82: 3 | AK82: 3 | AL82: 0 | AM82: 3 | AN82: 2 | AO82: 1 | AP82: 0 | AQ82: 0 | AR82: 0 | AS82: 2 | AT82: 1 | AU82: 1 | AV82: 1 | AW82: 0 | AX82: 1
B83: 77 | C83: 521 | D83: 259 | E83: 262 | F83: 249 | G83: 115 | H83: 134 | I83: 66 | J83: 27 | K83: 39 | L83: 117 | M83: 71 | N83: 46 | O83: 7 | P83: 5 | Q83: 2 | R83: 1 | S83: 0 | T83: 1 | U83: 44 | V83: 21 | W83: 23 | X83: 0 | Y83: 0 | Z83: 0 | AA83: 6 | AB83: 3 | AC83: 3 | AD83: 13 | AE83: 8 | AF83: 5 | AG83: 1 | AH83: 0 | AI83: 1 | AJ83: 6 | AK83: 4 | AL83: 2 | AM83: 4 | AN83: 1 | AO83: 3 | AP83: 0 | AQ83: 0 | AR83: 0 | AS83: 7 | AT83: 4 | AU83: 3 | AV83: 0 | AW83: 0 | AX83: 0
B84: 78 | C84: 587 | D84: 307 | E84: 280 | F84: 275 | G84: 121 | H84: 154 | I84: 77 | J84: 42 | K84: 35 | L84: 125 | M84: 79 | N84: 46 | O84: 4 | P84: 2 | Q84: 2 | R84: 2 | S84: 1 | T84: 1 | U84: 64 | V84: 36 | W84: 28 | X84: 0 | Y84: 0 | Z84: 0 | AA84: 3 | AB84: 0 | AC84: 3 | AD84: 22 | AE84: 16 | AF84: 6 | AG84: 0 | AH84: 0 | AI84: 0 | AJ84: 3 | AK84: 2 | AL84: 1 | AM84: 1 | AN84: 1 | AO84: 0 | AP84: 0 | AQ84: 0 | AR84: 0 | AS84: 11 | AT84: 7 | AU84: 4 | AV84: 0 | AW84: 0 | AX84: 0
B85: 79 | C85: 415 | D85: 217 | E85: 198 | F85: 197 | G85: 81 | H85: 116 | I85: 57 | J85: 31 | K85: 26 | L85: 94 | M85: 68 | N85: 26 | O85: 2 | P85: 2 | Q85: 0 | R85: 0 | S85: 0 | T85: 0 | U85: 37 | V85: 18 | W85: 19 | X85: 0 | Y85: 0 | Z85: 0 | AA85: 6 | AB85: 5 | AC85: 1 | AD85: 10 | AE85: 4 | AF85: 6 | AG85: 0 | AH85: 0 | AI85: 0 | AJ85: 5 | AK85: 4 | AL85: 1 | AM85: 2 | AN85: 1 | AO85: 1 | AP85: 0 | AQ85: 0 | AR85: 0 | AS85: 5 | AT85: 3 | AU85: 2 | AV85: 0 | AW85: 0 | AX85: 0
B86: 80 | C86: 447 | D86: 214 | E86: 233 | F86: 197 | G86: 80 | H86: 117 | I86: 48 | J86: 27 | K86: 21 | L86: 124 | M86: 66 | N86: 58 | O86: 4 | P86: 3 | Q86: 1 | R86: 2 | S86: 1 | T86: 1 | U86: 47 | V86: 19 | W86: 28 | X86: 0 | Y86: 0 | Z86: 0 | AA86: 1 | AB86: 1 | AC86: 0 | AD86: 10 | AE86: 5 | AF86: 5 | AG86: 1 | AH86: 0 | AI86: 1 | AJ86: 7 | AK86: 6 | AL86: 1 | AM86: 0 | AN86: 0 | AO86: 0 | AP86: 1 | AQ86: 1 | AR86: 0 | AS86: 5 | AT86: 5 | AU86: 0 | AV86: 0 | AW86: 0 | AX86: 0
B87: 81 | C87: 461 | D87: 223 | E87: 238 | F87: 194 | G87: 71 | H87: 123 | I87: 57 | J87: 29 | K87: 28 | L87: 130 | M87: 74 | N87: 56 | O87: 2 | P87: 2 | Q87: 0 | R87: 0 | S87: 0 | T87: 0 | U87: 47 | V87: 25 | W87: 22 | X87: 0 | Y87: 0 | Z87: 0 | AA87: 3 | AB87: 3 | AC87: 0 | AD87: 18 | AE87: 13 | AF87: 5 | AG87: 0 | AH87: 0 | AI87: 0 | AJ87: 2 | AK87: 1 | AL87: 1 | AM87: 1 | AN87: 0 | AO87: 1 | AP87: 1 | AQ87: 1 | AR87: 0 | AS87: 5 | AT87: 4 | AU87: 1 | AV87: 1 | AW87: 0 | AX87: 1
B88: 82 | C88: 542 | D88: 240 | E88: 302 | F88: 234 | G88: 67 | H88: 167 | I88: 61 | J88: 31 | K88: 30 | L88: 175 | M88: 104 | N88: 71 | O88: 3 | P88: 2 | Q88: 1 | R88: 0 | S88: 0 | T88: 0 | U88: 35 | V88: 18 | W88: 17 | X88: 0 | Y88: 0 | Z88: 0 | AA88: 2 | AB88: 2 | AC88: 0 | AD88: 15 | AE88: 6 | AF88: 9 | AG88: 0 | AH88: 0 | AI88: 0 | AJ88: 3 | AK88: 3 | AL88: 0 | AM88: 1 | AN88: 0 | AO88: 1 | AP88: 1 | AQ88: 0 | AR88: 1 | AS88: 11 | AT88: 7 | AU88: 4 | AV88: 1 | AW88: 0 | AX88: 1
B89: 83 | C89: 541 | D89: 253 | E89: 288 | F89: 236 | G89: 81 | H89: 155 | I89: 59 | J89: 28 | K89: 31 | L89: 155 | M89: 95 | N89: 60 | O89: 1 | P89: 0 | Q89: 1 | R89: 2 | S89: 2 | T89: 0 | U89: 53 | V89: 26 | W89: 27 | X89: 0 | Y89: 0 | Z89: 0 | AA89: 3 | AB89: 1 | AC89: 2 | AD89: 18 | AE89: 10 | AF89: 8 | AG89: 0 | AH89: 0 | AI89: 0 | AJ89: 1 | AK89: 1 | AL89: 0 | AM89: 3 | AN89: 0 | AO89: 3 | AP89: 0 | AQ89: 0 | AR89: 0 | AS89: 9 | AT89: 8 | AU89: 1 | AV89: 1 | AW89: 1 | AX89: 0
B90: 84 | C90: 367 | D90: 163 | E90: 204 | F90: 156 | G90: 63 | H90: 93 | I90: 44 | J90: 21 | K90: 23 | L90: 114 | M90: 56 | N90: 58 | O90: 1 | P90: 1 | Q90: 0 | R90: 1 | S90: 1 | T90: 0 | U90: 29 | V90: 11 | W90: 18 | X90: 0 | Y90: 0 | Z90: 0 | AA90: 1 | AB90: 0 | AC90: 1 | AD90: 15 | AE90: 7 | AF90: 8 | AG90: 0 | AH90: 0 | AI90: 0 | AJ90: 0 | AK90: 0 | AL90: 0 | AM90: 0 | AN90: 0 | AO90: 0 | AP90: 0 | AQ90: 0 | AR90: 0 | AS90: 6 | AT90: 3 | AU90: 3 | AV90: 0 | AW90: 0 | AX90: 0
A91: 합계 | B91: 85 | C91: 398 | D91: 192 | E91: 206 | F91: 157 | G91: 57 | H91: 100 | I91: 39 | J91: 21 | K91: 18 | L91: 153 | M91: 92 | N91: 61 | O91: 2 | P91: 1 | Q91: 1 | R91: 0 | S91: 0 | T91: 0 | U91: 28 | V91: 10 | W91: 18 | X91: 0 | Y91: 0 | Z91: 0 | AA91: 0 | AB91: 0 | AC91: 0 | AD91: 13 | AE91: 7 | AF91: 6 | AG91: 0 | AH91: 0 | AI91: 0 | AJ91: 0 | AK91: 0 | AL91: 0 | AM91: 1 | AN91: 1 | AO91: 0 | AP91: 1 | AQ91: 0 | AR91: 1 | AS91: 4 | AT91: 3 | AU91: 1 | AV91: 0 | AW91: 0 | AX91: 0
B92: 86 | C92: 337 | D92: 148 | E92: 189 | F92: 121 | G92: 40 | H92: 81 | I92: 45 | J92: 23 | K92: 22 | L92: 114 | M92: 58 | N92: 56 | O92: 1 | P92: 1 | Q92: 0 | R92: 2 | S92: 1 | T92: 1 | U92: 37 | V92: 15 | W92: 22 | X92: 0 | Y92: 0 | Z92: 0 | AA92: 1 | AB92: 0 | AC92: 1 | AD92: 9 | AE92: 3 | AF92: 6 | AG92: 0 | AH92: 0 | AI92: 0 | AJ92: 2 | AK92: 2 | AL92: 0 | AM92: 0 | AN92: 0 | AO92: 0 | AP92: 0 | AQ92: 0 | AR92: 0 | AS92: 5 | AT92: 5 | AU92: 0 | AV92: 0 | AW92: 0 | AX92: 0
B93: 87 | C93: 319 | D93: 116 | E93: 203 | F93: 114 | G93: 31 | H93: 83 | I93: 27 | J93: 10 | K93: 17 | L93: 122 | M93: 50 | N93: 72 | O93: 1 | P93: 1 | Q93: 0 | R93: 1 | S93: 1 | T93: 0 | U93: 33 | V93: 12 | W93: 21 | X93: 0 | Y93: 0 | Z93: 0 | AA93: 0 | AB93: 0 | AC93: 0 | AD93: 13 | AE93: 6 | AF93: 7 | AG93: 1 | AH93: 1 | AI93: 0 | AJ93: 1 | AK93: 1 | AL93: 0 | AM93: 0 | AN93: 0 | AO93: 0 | AP93: 0 | AQ93: 0 | AR93: 0 | AS93: 6 | AT93: 3 | AU93: 3 | AV93: 0 | AW93: 0 | AX93: 0
B94: 88 | C94: 285 | D94: 112 | E94: 173 | F94: 111 | G94: 29 | H94: 82 | I94: 22 | J94: 12 | K94: 10 | L94: 115 | M94: 54 | N94: 61 | O94: 0 | P94: 0 | Q94: 0 | R94: 0 | S94: 0 | T94: 0 | U94: 25 | V94: 9 | W94: 16 | X94: 0 | Y94: 0 | Z94: 0 | AA94: 1 | AB94: 1 | AC94: 0 | AD94: 8 | AE94: 5 | AF94: 3 | AG94: 0 | AH94: 0 | AI94: 0 | AJ94: 1 | AK94: 1 | AL94: 0 | AM94: 0 | AN94: 0 | AO94: 0 | AP94: 0 | AQ94: 0 | AR94: 0 | AS94: 2 | AT94: 1 | AU94: 1 | AV94: 0 | AW94: 0 | AX94: 0
B95: 89 | C95: 205 | D95: 85 | E95: 120 | F95: 64 | G95: 16 | H95: 48 | I95: 16 | J95: 7 | K95: 9 | L95: 97 | M95: 46 | N95: 51 | O95: 1 | P95: 0 | Q95: 1 | R95: 0 | S95: 0 | T95: 0 | U95: 17 | V95: 10 | W95: 7 | X95: 0 | Y95: 0 | Z95: 0 | AA95: 0 | AB95: 0 | AC95: 0 | AD95: 5 | AE95: 2 | AF95: 3 | AG95: 1 | AH95: 1 | AI95: 0 | AJ95: 0 | AK95: 0 | AL95: 0 | AM95: 0 | AN95: 0 | AO95: 0 | AP95: 0 | AQ95: 0 | AR95: 0 | AS95: 4 | AT95: 3 | AU95: 1 | AV95: 0 | AW95: 0 | AX95: 0
B96: 90 | C96: 195 | D96: 62 | E96: 133 | F96: 71 | G96: 10 | H96: 61 | I96: 20 | J96: 5 | K96: 15 | L96: 79 | M96: 39 | N96: 40 | O96: 0 | P96: 0 | Q96: 0 | R96: 1 | S96: 0 | T96: 1 | U96: 15 | V96: 4 | W96: 11 | X96: 0 | Y96: 0 | Z96: 0 | AA96: 1 | AB96: 0 | AC96: 1 | AD96: 6 | AE96: 3 | AF96: 3 | AG96: 0 | AH96: 0 | AI96: 0 | AJ96: 0 | AK96: 0 | AL96: 0 | AM96: 0 | AN96: 0 | AO96: 0 | AP96: 0 | AQ96: 0 | AR96: 0 | AS96: 2 | AT96: 1 | AU96: 1 | AV96: 0 | AW96: 0 | AX96: 0
B97: 91 | C97: 132 | D97: 47 | E97: 85 | F97: 47 | G97: 12 | H97: 35 | I97: 8 | J97: 2 | K97: 6 | L97: 67 | M97: 30 | N97: 37 | O97: 2 | P97: 1 | Q97: 1 | R97: 0 | S97: 0 | T97: 0 | U97: 8 | V97: 2 | W97: 6 | X97: 0 | Y97: 0 | Z97: 0 | AA97: 0 | AB97: 0 | AC97: 0 | AD97: 0 | AE97: 0 | AF97: 0 | AG97: 0 | AH97: 0 | AI97: 0 | AJ97: 0 | AK97: 0 | AL97: 0 | AM97: 0 | AN97: 0 | AO97: 0 | AP97: 0 | AQ97: 0 | AR97: 0 | AS97: 0 | AT97: 0 | AU97: 0 | AV97: 0 | AW97: 0 | AX97: 0
B98: 92 | C98: 95 | D98: 30 | E98: 65 | F98: 21 | G98: 4 | H98: 17 | I98: 8 | J98: 4 | K98: 4 | L98: 53 | M98: 20 | N98: 33 | O98: 1 | P98: 0 | Q98: 1 | R98: 0 | S98: 0 | T98: 0 | U98: 10 | V98: 2 | W98: 8 | X98: 0 | Y98: 0 | Z98: 0 | AA98: 0 | AB98: 0 | AC98: 0 | AD98: 2 | AE98: 0 | AF98: 2 | AG98: 0 | AH98: 0 | AI98: 0 | AJ98: 0 | AK98: 0 | AL98: 0 | AM98: 0 | AN98: 0 | AO98: 0 | AP98: 0 | AQ98: 0 | AR98: 0 | AS98: 0 | AT98: 0 | AU98: 0 | AV98: 0 | AW98: 0 | AX98: 0
B99: 93 | C99: 65 | D99: 19 | E99: 46 | F99: 20 | G99: 5 | H99: 15 | I99: 5 | J99: 1 | K99: 4 | L99: 39 | M99: 13 | N99: 26 | O99: 0 | P99: 0 | Q99: 0 | R99: 0 | S99: 0 | T99: 0 | U99: 1 | V99: 0 | W99: 1 | X99: 0 | Y99: 0 | Z99: 0 | AA99: 0 | AB99: 0 | AC99: 0 | AD99: 0 | AE99: 0 | AF99: 0 | AG99: 0 | AH99: 0 | AI99: 0 | AJ99: 0 | AK99: 0 | AL99: 0 | AM99: 0 | AN99: 0 | AO99: 0 | AP99: 0 | AQ99: 0 | AR99: 0 | AS99: 0 | AT99: 0 | AU99: 0 | AV99: 0 | AW99: 0 | AX99: 0
B100: 94 | C100: 45 | D100: 16 | E100: 29 | F100: 10 | G100: 1 | H100: 9 | I100: 9 | J100: 4 | K100: 5 | L100: 21 | M100: 8 | N100: 13 | O100: 0 | P100: 0 | Q100: 0 | R100: 0 | S100: 0 | T100: 0 | U100: 2 | V100: 1 | W100: 1 | X100: 0 | Y100: 0 | Z100: 0 | AA100: 0 | AB100: 0 | AC100: 0 | AD100: 1 | AE100: 0 | AF100: 1 | AG100: 0 | AH100: 0 | AI100: 0 | AJ100: 0 | AK100: 0 | AL100: 0 | AM100: 0 | AN100: 0 | AO100: 0 | AP100: 0 | AQ100: 0 | AR100: 0 | AS100: 2 | AT100: 2 | AU100: 0 | AV100: 0 | AW100: 0 | AX100: 0
B101: 95 | C101: 41 | D101: 15 | E101: 26 | F101: 10 | G101: 1 | H101: 9 | I101: 2 | J101: 0 | K101: 2 | L101: 23 | M101: 10 | N101: 13 | O101: 0 | P101: 0 | Q101: 0 | R101: 0 | S101: 0 | T101: 0 | U101: 3 | V101: 1 | W101: 2 | X101: 0 | Y101: 0 | Z101: 0 | AA101: 0 | AB101: 0 | AC101: 0 | AD101: 1 | AE101: 1 | AF101: 0 | AG101: 0 | AH101: 0 | AI101: 0 | AJ101: 1 | AK101: 1 | AL101: 0 | AM101: 0 | AN101: 0 | AO101: 0 | AP101: 0 | AQ101: 0 | AR101: 0 | AS101: 1 | AT101: 1 | AU101: 0 | AV101: 0 | AW101: 0 | AX101: 0
B102: 96 | C102: 28 | D102: 11 | E102: 17 | F102: 9 | G102: 2 | H102: 7 | I102: 4 | J102: 2 | K102: 2 | L102: 14 | M102: 6 | N102: 8 | O102: 0 | P102: 0 | Q102: 0 | R102: 0 | S102: 0 | T102: 0 | U102: 0 | V102: 0 | W102: 0 | X102: 0 | Y102: 0 | Z102: 0 | AA102: 0 | AB102: 0 | AC102: 0 | AD102: 0 | AE102: 0 | AF102: 0 | AG102: 0 | AH102: 0 | AI102: 0 | AJ102: 0 | AK102: 0 | AL102: 0 | AM102: 0 | AN102: 0 | AO102: 0 | AP102: 0 | AQ102: 0 | AR102: 0 | AS102: 1 | AT102: 1 | AU102: 0 | AV102: 0 | AW102: 0 | AX102: 0
B103: 97 | C103: 16 | D103: 5 | E103: 11 | F103: 4 | G103: 0 | H103: 4 | I103: 1 | J103: 0 | K103: 1 | L103: 10 | M103: 5 | N103: 5 | O103: 0 | P103: 0 | Q103: 0 | R103: 0 | S103: 0 | T103: 0 | U103: 0 | V103: 0 | W103: 0 | X103: 0 | Y103: 0 | Z103: 0 | AA103: 0 | AB103: 0 | AC103: 0 | AD103: 0 | AE103: 0 | AF103: 0 | AG103: 0 | AH103: 0 | AI103: 0 | AJ103: 0 | AK103: 0 | AL103: 0 | AM103: 0 | AN103: 0 | AO103: 0 | AP103: 0 | AQ103: 0 | AR103: 0 | AS103: 1 | AT103: 0 | AU103: 1 | AV103: 0 | AW103: 0 | AX103: 0
B104: 98 | C104: 5 | D104: 2 | E104: 3 | F104: 3 | G104: 1 | H104: 2 | I104: 1 | J104: 1 | K104: 0 | L104: 1 | M104: 0 | N104: 1 | O104: 0 | P104: 0 | Q104: 0 | R104: 0 | S104: 0 | T104: 0 | U104: 0 | V104: 0 | W104: 0 | X104: 0 | Y104: 0 | Z104: 0 | AA104: 0 | AB104: 0 | AC104: 0 | AD104: 0 | AE104: 0 | AF104: 0 | AG104: 0 | AH104: 0 | AI104: 0 | AJ104: 0 | AK104: 0 | AL104: 0 | AM104: 0 | AN104: 0 | AO104: 0 | AP104: 0 | AQ104: 0 | AR104: 0 | AS104: 0 | AT104: 0 | AU104: 0 | AV104: 0 | AW104: 0 | AX104: 0
B105: 99 | C105: 10 | D105: 2 | E105: 8 | F105: 1 | G105: 1 | H105: 0 | I105: 0 | J105: 0 | K105: 0 | L105: 8 | M105: 1 | N105: 7 | O105: 0 | P105: 0 | Q105: 0 | R105: 0 | S105: 0 | T105: 0 | U105: 0 | V105: 0 | W105: 0 | X105: 0 | Y105: 0 | Z105: 0 | AA105: 0 | AB105: 0 | AC105: 0 | AD105: 0 | AE105: 0 | AF105: 0 | AG105: 0 | AH105: 0 | AI105: 0 | AJ105: 0 | AK105: 0 | AL105: 0 | AM105: 0 | AN105: 0 | AO105: 0 | AP105: 0 | AQ105: 0 | AR105: 0 | AS105: 1 | AT105: 0 | AU105: 1 | AV105: 0 | AW105: 0 | AX105: 0
B106: 100 | C106: 5 | D106: 1 | E106: 4 | F106: 2 | G106: 0 | H106: 2 | I106: 0 | J106: 0 | K106: 0 | L106: 3 | M106: 1 | N106: 2 | O106: 0 | P106: 0 | Q106: 0 | R106: 0 | S106: 0 | T106: 0 | U106: 0 | V106: 0 | W106: 0 | X106: 0 | Y106: 0 | Z106: 0 | AA106: 0 | AB106: 0 | AC106: 0 | AD106: 0 | AE106: 0 | AF106: 0 | AG106: 0 | AH106: 0 | AI106: 0 | AJ106: 0 | AK106: 0 | AL106: 0 | AM106: 0 | AN106: 0 | AO106: 0 | AP106: 0 | AQ106: 0 | AR106: 0 | AS106: 0 | AT106: 0 | AU106: 0 | AV106: 0 | AW106: 0 | AX106: 0
B107: 101 | C107: 7 | D107: 2 | E107: 5 | F107: 2 | G107: 0 | H107: 2 | I107: 0 | J107: 0 | K107: 0 | L107: 4 | M107: 1 | N107: 3 | O107: 0 | P107: 0 | Q107: 0 | R107: 0 | S107: 0 | T107: 0 | U107: 0 | V107: 0 | W107: 0 | X107: 0 | Y107: 0 | Z107: 0 | AA107: 0 | AB107: 0 | AC107: 0 | AD107: 1 | AE107: 1 | AF107: 0 | AG107: 0 | AH107: 0 | AI107: 0 | AJ107: 0 | AK107: 0 | AL107: 0 | AM107: 0 | AN107: 0 | AO107: 0 | AP107: 0 | AQ107: 0 | AR107: 0 | AS107: 0 | AT107: 0 | AU107: 0 | AV107: 0 | AW107: 0 | AX107: 0
B108: 102 | C108: 1 | D108: 0 | E108: 1 | F108: 0 | G108: 0 | H108: 0 | I108: 0 | J108: 0 | K108: 0 | L108: 1 | M108: 0 | N108: 1 | O108: 0 | P108: 0 | Q108: 0 | R108: 0 | S108: 0 | T108: 0 | U108: 0 | V108: 0 | W108: 0 | X108: 0 | Y108: 0 | Z108: 0 | AA108: 0 | AB108: 0 | AC108: 0 | AD108: 0 | AE108: 0 | AF108: 0 | AG108: 0 | AH108: 0 | AI108: 0 | AJ108: 0 | AK108: 0 | AL108: 0 | AM108: 0 | AN108: 0 | AO108: 0 | AP108: 0 | AQ108: 0 | AR108: 0 | AS108: 0 | AT108: 0 | AU108: 0 | AV108: 0 | AW108: 0 | AX108: 0
B109: 103 | C109: 1 | D109: 0 | E109: 1 | F109: 0 | G109: 0 | H109: 0 | I109: 0 | J109: 0 | K109: 0 | L109: 1 | M109: 0 | N109: 1 | O109: 0 | P109: 0 | Q109: 0 | R109: 0 | S109: 0 | T109: 0 | U109: 0 | V109: 0 | W109: 0 | X109: 0 | Y109: 0 | Z109: 0 | AA109: 0 | AB109: 0 | AC109: 0 | AD109: 0 | AE109: 0 | AF109: 0 | AG109: 0 | AH109: 0 | AI109: 0 | AJ109: 0 | AK109: 0 | AL109: 0 | AM109: 0 | AN109: 0 | AO109: 0 | AP109: 0 | AQ109: 0 | AR109: 0 | AS109: 0 | AT109: 0 | AU109: 0 | AV109: 0 | AW109: 0 | AX109: 0
B110: 104 | C110: 1 | D110: 1 | E110: 0 | F110: 1 | G110: 1 | H110: 0 | I110: 0 | J110: 0 | K110: 0 | L110: 0 | M110: 0 | N110: 0 | O110: 0 | P110: 0 | Q110: 0 | R110: 0 | S110: 0 | T110: 0 | U110: 0 | V110: 0 | W110: 0 | X110: 0 | Y110: 0 | Z110: 0 | AA110: 0 | AB110: 0 | AC110: 0 | AD110: 0 | AE110: 0 | AF110: 0 | AG110: 0 | AH110: 0 | AI110: 0 | AJ110: 0 | AK110: 0 | AL110: 0 | AM110: 0 | AN110: 0 | AO110: 0 | AP110: 0 | AQ110: 0 | AR110: 0 | AS110: 0 | AT110: 0 | AU110: 0 | AV110: 0 | AW110: 0 | AX110: 0
B111: 108 | C111: 1 | D111: 0 | E111: 1 | F111: 0 | G111: 0 | H111: 0 | I111: 0 | J111: 0 | K111: 0 | L111: 1 | M111: 0 | N111: 1 | O111: 0 | P111: 0 | Q111: 0 | R111: 0 | S111: 0 | T111: 0 | U111: 0 | V111: 0 | W111: 0 | X111: 0 | Y111: 0 | Z111: 0 | AA111: 0 | AB111: 0 | AC111: 0 | AD111: 0 | AE111: 0 | AF111: 0 | AG111: 0 | AH111: 0 | AI111: 0 | AJ111: 0 | AK111: 0 | AL111: 0 | AM111: 0 | AN111: 0 | AO111: 0 | AP111: 0 | AQ111: 0 | AR111: 0 | AS111: 0 | AT111: 0 | AU111: 0 | AV111: 0 | AW111: 0 | AX111: 0

Sheet Sheet1 (hidden)
A1: 구산동 | B1: 2238
A2: 역촌동 | B2: 2143
A3: 진관동 | B3: 1968
A4: 불광1동 | B4: 1720
A5: 녹번동 | B5: 1641
A6: 불광2동 | B6: 1442
A7: 응암3동 | B7: 1327
A8: 응암1동 | B8: 1326
A9: 대조동 | B9: 1230
A10: 신사1동 | B10: 1229
A11: 갈현2동 | B11: 1204
A12: 갈현1동 | B12: 1046
A13: 응암2동 | B13: 987
A14: 신사2동 | B14: 927
A15: 증산동 | B15: 703
A16: 수색동 | B16: 623

Sheet Sheet2 (hidden)
A1: 은평구 동별 장애인현황(유형별) (2024. 3월말)
A2: 동별 | B2: 합계 | E2: 지적 | H2: 자폐 | K2: 발달장애인 | N2: 발달장애인비율
B3: 합계 | C3: 남성 | D3: 여성 | E3: 소계 | F3: 남성 | G3: 여성 | H3: 소계 | I3: 남성 | J3: 여성 | K3: 소계 | L3: 남성 | M3: 여성
A4: 합 계 | B4: =C4+D4 -> 21216 | C4: =SUM(C5:C20) -> 12336 | D4: =SUM(D5:D20) -> 8880 | E4: =F4+G4 -> 1882 | F4: =SUM(F5:F20) -> 1237 | G4: =SUM(G5:G20) -> 645 | H4: =I4+J4 -> 506 | I4: =SUM(I5:I20) -> 420 | J4: =SUM(J5:J20) -> 86 | K4: =L4+M4 -> 2388 | L4: =F4+I4 -> 1657 | M4: =G4+J4 -> 731 | N4: =K4/B4 -> 0.1125565611
A5: 녹번동 | B5: =C5+D5 -> 1609 | C5: =유형별!C5 -> 918 | D5: =유형별!D5 -> 691 | E5: =F5+G5 -> 110 | F5: =유형별!R5 -> 70 | G5: =유형별!S5 -> 40 | H5: =I5+J5 -> 22 | I5: =유형별!X5 -> 16 | J5: =유형별!Y5 -> 6 | K5: =E5+H5 -> 132 | L5: =F5+I5 -> 86 | M5: =G5+J5 -> 46 | N5: 0.08203853325
A6: 불광1동 | B6: 1625 | C6: =유형별!C6 -> 907 | D6: =유형별!D6 -> 718 | E6: 111 | F6: =유형별!R6 -> 64 | G6: =유형별!S6 -> 47 | H6: 31 | I6: =유형별!X6 -> 26 | J6: =유형별!Y6 -> 5 | K6: 142 | L6: 90 | M6: 52 | N6: 0.08738461538
A7: 불광2동 | B7: 1432 | C7: =유형별!C7 -> 842 | D7: =유형별!D7 -> 590 | E7: 117 | F7: =유형별!R7 -> 73 | G7: =유형별!S7 -> 44 | H7: 30 | I7: =유형별!X7 -> 30 | J7: =유형별!Y7 -> 0 | K7: 147 | L7: 103 | M7: 44 | N7: 0.1026536313
A8: 갈현1동 | B8: 692 | C8: =유형별!C8 -> 390 | D8: =유형별!D8 -> 302 | E8: 59 | F8: =유형별!R8 -> 38 | G8: =유형별!S8 -> 21 | H8: 18 | I8: =유형별!X8 -> 16 | J8: =유형별!Y8 -> 2 | K8: 77 | L8: 54 | M8: 23 | N8: 0.1112716763 | R8: =2206/21767 -> 0.1013460743
A9: 갈현2동 | B9: 1255 | C9: =유형별!C9 -> 737 | D9: =유형별!D9 -> 518 | E9: 111 | F9: =유형별!R9 -> 69 | G9: =유형별!S9 -> 42 | H9: 20 | I9: =유형별!X9 -> 14 | J9: =유형별!Y9 -> 6 | K9: 131 | L9: 83 | M9: 48 | N9: 0.1043824701
A10: 구산동 | B10: 2108 | C10: =유형별!C10 -> 1454 | D10: =유형별!D10 -> 654 | E10: 402 | F10: =유형별!R10 -> 312 | G10: =유형별!S10 -> 90 | H10: 48 | I10: =유형별!X10 -> 40 | J10: =유형별!Y10 -> 8 | K10: 450 | L10: 352 | M10: 98 | N10: 0.2134724858
A11: 대조동 | B11: 1225 | C11: =유형별!C11 -> 707 | D11: =유형별!D11 -> 518 | E11: 69 | F11: =유형별!R11 -> 46 | G11: =유형별!S11 -> 23 | H11: 28 | I11: =유형별!X11 -> 22 | J11: =유형별!Y11 -> 6 | K11: 97 | L11: 68 | M11: 29 | N11: 0.07918367347
A12: 응암1동 | B12: 1312 | C12: =유형별!C12 -> 709 | D12: =유형별!D12 -> 603 | E12: 70 | F12: =유형별!R12 -> 41 | G12: =유형별!S12 -> 29 | H12: 33 | I12: =유형별!X12 -> 28 | J12: =유형별!Y12 -> 5 | K12: 103 | L12: 69 | M12: 34 | N12: 0.07850609756
A13: 응암2동 | B13: 962 | C13: =유형별!C13 -> 538 | D13: =유형별!D13 -> 424 | E13: 71 | F13: =유형별!R13 -> 45 | G13: =유형별!S13 -> 26 | H13: 36 | I13: =유형별!X13 -> 31 | J13: =유형별!Y13 -> 5 | K13: 107 | L13: 76 | M13: 31 | N13: 0.1112266112
A14: 응암3동 | B14: 1302 | C14: =유형별!C14 -> 729 | D14: =유형별!D14 -> 573 | E14: 87 | F14: =유형별!R14 -> 58 | G14: =유형별!S14 -> 29 | H14: 20 | I14: =유형별!X14 -> 15 | J14: =유형별!Y14 -> 5 | K14: 107 | L14: 73 | M14: 34 | N14: 0.0821812596
A15: 역촌동 | B15: 2159 | C15: =유형별!C15 -> 1205 | D15: =유형별!D15 -> 954 | E15: 206 | F15: =유형별!R15 -> 126 | G15: =유형별!S15 -> 80 | H15: 41 | I15: =유형별!X15 -> 33 | J15: =유형별!Y15 -> 8 | K15: 247 | L15: 159 | M15: 88 | N15: 0.114404817
A16: 신사1동 | B16: 1255 | C16: =유형별!C16 -> 745 | D16: =유형별!D16 -> 510 | E16: 149 | F16: =유형별!R16 -> 88 | G16: =유형별!S16 -> 61 | H16: 31 | I16: =유형별!X16 -> 24 | J16: =유형별!Y16 -> 7 | K16: 180 | L16: 112 | M16: 68 | N16: 0.1434262948
A17: 신사2동 | B17: 884 | C17: =유형별!C17 -> 508 | D17: =유형별!D17 -> 376 | E17: 77 | F17: =유형별!R17 -> 44 | G17: =유형별!S17 -> 33 | H17: 21 | I17: =유형별!X17 -> 17 | J17: =유형별!Y17 -> 4 | K17: 98 | L17: 61 | M17: 37 | N17: 0.1108597285
A18: 증산동 | B18: 669 | C18: =유형별!C18 -> 394 | D18: =유형별!D18 -> 275 | E18: 47 | F18: =유형별!R18 -> 32 | G18: =유형별!S18 -> 15 | H18: 17 | I18: =유형별!X18 -> 17 | J18: =유형별!Y18 -> 0 | K18: 64 | L18: 49 | M18: 15 | N18: 0.0956651719
A19: 수색동 | B19: 822 | C19: =유형별!C19 -> 444 | D19: =유형별!D19 -> 378 | E19: 61 | F19: =유형별!R19 -> 42 | G19: =유형별!S19 -> 19 | H19: 20 | I19: =유형별!X19 -> 17 | J19: =유형별!Y19 -> 3 | K19: 81 | L19: 59 | M19: 22 | N19: 0.09854014599
A20: 진관동 | B20: 1905 | C20: =유형별!C20 -> 1109 | D20: =유형별!D20 -> 796 | E20: 135 | F20: =유형별!R20 -> 89 | G20: =유형별!S20 -> 46 | H20: 90 | I20: =유형별!X20 -> 74 | J20: =유형별!Y20 -> 16 | K20: 225 | L20: 163 | M20: 62 | N20: 0.1181102362
A22: *발달장애인 수는 2,206명으로 전체 장애인의 10.1%

Sheet Sheet3 (hidden)
A2: 자치구 | B2: 장애유형 | C2: 2023 | G2: 자치구 | H2: 장애유형 | I2: 2022 | M2: 자치구 | N2: 장애유형 | O2: 2021
C3: 계 | D3: 남 | E3: 여 | I3: 계 | J3: 남 | K3: 여 | O3: 계 | P3: 남 | Q3: 여
A4: 은평구 | B4: 합 계 | C4: 21602 | D4: 12604 | E4: 8998 | G4: 은평구 | H4: 합 계 | I4: =SUM(I5:I19) -> 21753 | J4: =SUM(J5:J19) -> 12687 | K4: 9066 | M4: 은평구 | N4: 합 계 | O4: 21753 | P4: 12704 | Q4: 9049
B5: 지체 | C5: 8636 | D5: 4714 | E5: 3922 | H5: 지체 | I5: 8837 | J5: 4842 | K5: 3995 | N5: 지체 | O5: 8917 | P5: 4897 | Q5: 4020
B6: 시각 | C6: 2265 | D6: 1340 | E6: 925 | H6: 시각 | I6: 2274 | J6: 1364 | K6: 910 | N6: 시각 | O6: 2315 | P6: 1387 | Q6: 928
B7: 청각 | C7: 3350 | D7: 1869 | E7: 1481 | H7: 청각 | I7: 3350 | J7: 1853 | K7: 1497 | N7: 청각 | O7: 3282 | P7: 1814 | Q7: 1468
B8: 언어 | C8: 173 | D8: 124 | E8: 49 | H8: 언어 | I8: 181 | J8: 134 | K8: 47 | N8: 언어 | O8: 177 | P8: 129 | Q8: 48
B9: 지적 | C9: 1863 | D9: 1222 | E9: 641 | H9: 지적 | I9: 1828 | J9: 1200 | K9: 628 | N9: 지적 | O9: 1805 | P9: 1185 | Q9: 620
B10: 뇌병변 | C10: 2188 | D10: 1307 | E10: 881 | H10: 뇌병변 | I10: 2218 | J10: 1318 | K10: 900 | N10: 뇌병변 | O10: 2244 | P10: 1349 | Q10: 895
B11: 자폐성 | C11: 450 | D11: 377 | E11: 73 | H11: 자폐성 | I11: 396 | J11: 333 | K11: 63 | N11: 자폐성 | O11: 355 | P11: 298 | Q11: 57
B12: 정신 | C12: 1137 | D12: 696 | E12: 441 | H12: 정신 | I12: 1148 | J12: 705 | K12: 443 | N12: 정신 | O12: 1162 | P12: 718 | Q12: 444
B13: 신장 | C13: 928 | D13: 569 | E13: 359 | H13: 신장 | I13: 894 | J13: 542 | K13: 352 | N13: 신장 | O13: 874 | P13: 533 | Q13: 341
B14: 심장 | C14: 49 | D14: 26 | E14: 23 | H14: 심장 | I14: 55 | J14: 24 | K14: 31 | N14: 심장 | O14: 55 | P14: 26 | Q14: 29
B15: 호흡기 | C15: 122 | D15: 88 | E15: 34 | H15: 호흡기 | I15: 120 | J15: 86 | K15: 34 | N15: 호흡기 | O15: 130 | P15: 92 | Q15: 38
B16: 간 | C16: 164 | D16: 109 | E16: 55 | H16: 간 | I16: 168 | J16: 113 | K16: 55 | N16: 간 | O16: 166 | P16: 114 | Q16: 52
B17: 안면 | C17: 25 | D17: 13 | E17: 12 | H17: 안면 | I17: 22 | J17: 11 | K17: 11 | N17: 안면 | O17: 23 | P17: 12 | Q17: 11
B18: 장루.요루 | C18: 187 | D18: 118 | E18: 69 | H18: 장루.요루 | I18: 194 | J18: 126 | K18: 68 | N18: 장루.요루 | O18: 181 | P18: 114 | Q18: 67
B19: 뇌전증 | C19: 65 | D19: 32 | E19: 33 | H19: 뇌전증 | I19: 68 | J19: 36 | K19: 32 | N19: 뇌전증 | O19: 67 | P19: 36 | Q19: 31
C22: 2023 | D22: 2022 | E22: 2021 | G22: 2024 | H22: 2025 | I22: 2026 | J22: 2027 | K22: 2028
A23: 외부신체기능장애 | C23: =SUM(C5,C10,C6,C7,C8,C17) -> 16637 | D23: =SUM(I5,I10,I6,I7,I8,I17) -> 16882 | E23: =SUM(O5,O10,O6,O7,O8,O17) -> 16958 | G23: =C23+C23*$G$29 -> 16478.99841 | H23: =G23+G23*$G$29 -> 16322.49736 | I23: =H23+H23*$G$29 -> 16167.48261 | J23: =I23+I23*$G$29 -> 16013.94002 | K23: =J23+J23*$G$29 -> 15861.85563
A24: 내부기관장애 | C24: =SUM(C13,C14,C16,C15,C18,C19) -> 1515 | D24: =SUM(I13:I16,I18,I19) -> 1499 | E24: =SUM(O13:O16,O18:O19) -> 1473 | G24: =C24+C24*$G$30 -> 1536.4524 | H24: =G24+G24*$G$30 -> 1558.208566 | I24: =H24+H24*$G$30 -> 1580.272799 | J24: =I24+I24*$G$30 -> 1602.649462 | K24: =J24+J24*$G$30 -> 1625.342978
A25: 정신적장애 | C25: =SUM(C9,C12,C11) -> 3450 | D25: =SUM(I9,I11,I12) -> 3372 | E25: =SUM(O9,O11,O12) -> 3322 | G25: =C25+C25*$G$31 -> 3515.8605 | H25: =G25+G25*$G$31 -> 3582.978277 | I25: =H25+H25*$G$31 -> 3651.377332 | J25: =I25+I25*$G$31 -> 3721.082126 | K25: =J25+J25*$G$31 -> 3792.117583
A26: 계 | C26: =SUM(C23:C25) -> 21602 | D26: =SUM(D23:D25) -> 21753 | E26: =SUM(E23:E25) -> 21753 | G26: =SUM(G23:G25) -> 21531.31131 | H26: =SUM(H23:H25) -> 21463.68421 | I26: =SUM(I23:I25) -> 21399.13274 | J26: =SUM(J23:J25) -> 21337.67161 | K26: =SUM(K23:K25) -> 21279.3162
A29: 외부신체기능장애 | C29: =(D23-C23)/D23 -> 0.01451249852 | D29: 0.004481660573 | F29: =(C29+D29)/2 -> 0.009497079546 | G29: -0.009497
A30: 내부기관장애 | C30: -0.01067378252 | D30: -0.01765105227 | F30: =(C30+D30)/2 -> -0.0141624174 | G30: 0.01416
A31: 정신적장애 | C31: -0.0231316726 | D31: -0.01505117399 | F31: =(C31+D31)/2 -> -0.01909142329 | G31: 0.01909
A32: 계
C36: 2024 | D36: 2025 | E36: 2026 | F36: 2027 | G36: 2028
C37: -0.0026
A38: 외부신체기능장애 | B38: 16637 | C38: 16593.7438 | D38: 16550.60007 | E38: 16507.56851 | F38: 16464.64883 | G38: 16421.84074
A39: 내부기관장애 | B39: 1515 | C39: 1511.061 | D39: 1507.132241 | E39: 1503.213698 | F39: 1499.305342 | G39: 1495.407148
A40: 정신적장애 | B40: 3450 | C40: 3441.03 | D40: 3432.083322 | E40: 3423.159905 | F40: 3414.25969 | G40: 3405.382614
B41: 21602 | C41: 21545.8348 | D41: 21489.81563 | E41: 21433.94211 | F41: 21378.21386 | G41: 21322.6305
